Workbook

Sheet 1. Info
AB1: Alectra Utilities Corporation - Enersource Hydro
AB2: Alectra Utilities Corporation - Horizon Utilities
AB3: Alectra Utilities Corporation - Hydro One Brampton
AB4: Alectra Utilities Corporation - PowerStream Inc.
AB5: Algoma Power Inc.
AB6: Atikokan Hydro Inc.
AB7: Attawapiskat Power Corp.
AB8: Bluewater Power Distribution Corporation
AB9: Brantford Power Inc.
AB10: Burlington Hydro Inc.
AB11: Canadian Niagara Power Inc.
AB12: Centre Wellington Hydro Ltd.
A13: Drop-down lists are shaded blue; Input cells are shaded green. | AB13: Chapleau Public Utilities Corporation
AB14: COLLUS PowerStream Corporation
C15: Utility Name | D15: Kingston Hydro Corporation | AB15: Cooperative Hydro Embrun Inc.
AB16: E.L.K. Energy Inc.
C17: Service Territory | AB17: Energy + Inc.
AB18: Entegrus Powerlines Inc.
C19: Assigned EB Number | D19: EB-2018-0047 | AB19: ENWIN Utilities Ltd.
AB20: Erie Thames Powerlines Corporation
C21: Name and Title | D21: Sherry Gibson, Senior Advisor Rates and Regulatory Affairs | AB21: Espanola Regional Hydro Distribution Corporation
AB22: Essex Powerlines Corporation
C23: Phone Number | D23: 613-546-1181 ext 2383 | AB23: Festival Hydro Inc.
AB24: Fort Albany Power Corporation
C25: Email Address | D25: sgibson@kingstonhydro.com | AB25: Fort Frances Power Corporation
AB26: Greater Sudbury Hydro Inc.
C27: Date | D27: 2018-10-23 | AB27: Grimsby Power Inc.
AB28: Guelph Hydro Electric Systems Inc.
C29: Last COS Re-based Year | D29: 2016 | AB29: Halton Hills Hydro Inc.
AB30: Hearst Power Distribution Company Limited
AB31: Hydro 2000 Inc.
AB32: Hydro Hawkesbury Inc.
AB33: Hydro One Networks Inc.
AB34: Hydro One Networks Inc. - Haldimand County Hydro
AB35: Hydro One Networks Inc. - Norfolk Hydro
AB36: Hydro One Networks Inc. - Woodstock Hydro
AB37: Hydro One Remote Communities Inc.
AB38: Hydro Ottawa Limited
AB39: Innpower Corporation
AB40: Kashechewan Power Corporation
AB41: Kenora Hydro Electric Corporation Ltd.
AB42: Kingston Hydro Corporation
AB43: Kitchener-Wilmot Hydro Inc.
AB44: Lakefront Utilities Inc.
AB45: Lakeland Power Distribution Ltd.
AB46: London Hydro Inc.
AB47: Midland Power Utility Corporation
AB48: Milton Hydro Distribution inc.
AB49: Newmarket - Tay Power Distribution Ltd.
AB50: Niagara Peninsula Energy Inc.
AB51: Niagara-on-the-Lake Hydro Inc.
AB52: North Bay Hydro Distribution Limited
AB53: Northern Ontario Wires Inc.
AB54: Oakville Hydro Electricity Distribution Inc.
AB55: Orangeville Hydro Limited
AB56: Orillia Power Distribution Corporation
AB57: Oshawa PUC Networks Inc.
AB58: Ottawa River Power Corporation
AB59: Peterborough Distribution Incorporated
AB60: PUC Distribution Inc.
AB61: Renfrew Hydro Inc.
AB62: Rideau St. Lawrence Distribution Inc.
AB63: Sioux Lookout Hydro Inc.
AB64: St. Thomas Energy Inc.
AB65: Thunder Bay Hydro Electricity Distribution Inc.
AB66: Tillsonburg Hydro Inc.
AB67: Toronto Hydro-Electric System Limited
AB68: Veridian Connections Inc.
AB69: Wasaga Distribution Inc.
AB70: Waterloo North Hydro Inc.
AB71: Welland Hydro Electric System Corp.
AB72: Wellington North Power Inc.
AB73: West Coast Huron Energy Inc.
AB74: Westario Power Inc.
AB75: Whitby Hydro Electric Corporation

Sheet 2. Table of Contents
D20: 1. Info | I20: 6. Historical Wholesale
D22: 2. Table of Contents | I22: 7. Current Wholesale
D24: 3. Rate Classes | I24: 8. Forecast Wholesale
D26: 4. RRR Data | I26: 9. RTSR Rates to Forecast
D28: 5. UTRs and Sub-Transmission

Sheet 3. Rate Classes
C13: 1. Select the appropriate rate classes that appear on your most recent Board-Approved Tariff of Rates and Charges. 2. Enter the RTS Network and Connection Rate as it appears on the Tariff of Rates and Charges
C15: Rate Class | E15: Unit | G15: RTSR-Network | I15: RTSR-Connection
C17: Residential | E17: kWh | G17: 0.0062 | I17: 0.0054 | L17: =IF(OR(ISBLANK(C17), ISERROR(FIND("Choose", C17))=FALSE), 0, 1) -> 1 | M17: ="C" & ROW(C17) -> C17 | N17: =IF(OR(C17="General Service Intermediate Rate Class 1,000 To 4,999 kW (formerly General Service > 50 kW Customers)", C17="General Service Intermediate Rate Class 1,000 To 4,999 kW (formerly Large Use Customers)"), "x", "") ->  | W17: Choose Rate Class
C18: General Service Less Than 50 kW | E18: kWh | G18: 0.0055 | I18: 0.0049 | L18: 1 | M18: C18 | N18: =IF(OR(C18="General Service Intermediate Rate Class 1,000 To 4,999 kW (formerly General Service > 50 kW Customers)", C18="General Service Intermediate Rate Class 1,000 To 4,999 kW (formerly Large Use Customers)"), "x", "") ->  | W18: Residential
C19: General Service 50 to 4,999 kW | E19: kW | G19: 2.4449 | I19: 2.1294 | L19: 1 | M19: C19 | W19: Residential Regular
C20: Large Use | E20: kW | G20: 2.9458 | I20: 2.5657 | L20: 1 | M20: C20 | W20: Residential Urban
C21: Unmetered Scattered Load | E21: kWh | G21: 0.0062 | I21: 0.0054 | L21: 1 | M21: C21 | W21: Residential Urban Year-Round
C22: Street Lighting | E22: kW | G22: 1.766 | I22: 1.538 | L22: 1 | M22: C22 | W22: Residential Suburban
C23: Standby Power | L23: 1 | M23: C23 | W23: Residential Suburban Seasonal
C24: Choose Rate Class | L24: 0 | M24: C24 | W24: Residential Suburban Year Round
C25: Choose Rate Class | L25: 0 | M25: C25 | W25: Residential - Time of Use
C26: Choose Rate Class | L26: 0 | M26: C26 | W26: Residential - Hensall
C27: Choose Rate Class | L27: 0 | M27: C27 | W27: Residential – High Density [R1]
C28: Choose Rate Class | L28: 0 | M28: C28 | W28: Residential – Normal Density [R2]
C29: Choose Rate Class | L29: 0 | M29: C29 | W29: Seasonal Residential – High Density [R3]
C30: Choose Rate Class | L30: 0 | M30: C30 | W30: Seasonal Residential – Normal Density [R4]
C31: Choose Rate Class | L31: 0 | M31: C31 | W31: Residential – Urban [UR]
C32: Choose Rate Class | L32: 0 | M32: C32 | W32: General Service Less Than 50 kW
C33: Choose Rate Class | L33: 0 | M33: C33 | W33: General Service Less Than 50 kW – Single Phase energy-billed [G1]
C34: Choose Rate Class | L34: 0 | M34: C34 | W34: General Service Less Than 50 kW – Three Phase energy-billed [G3]
C35: Choose Rate Class | L35: 0 | M35: C35 | W35: General Service Less Than 50 kW – Transmission Class energy-billed [T]
C36: Choose Rate Class | L36: 0 | M36: C36 | W36: General Service Less Than 50 kW – Urban energy-billed [UG]
C37: Choose Rate Class | L37: 0 | M37: C37 | W37: Westport Sewage Treatment Plant
C38: Choose Rate Class | L38: 0 | M38: C38 | W38: Small Commercial and USL - per meter
N39: =COUNTIF(N17:N38, "x") -> 0 | W39: Small Commercial and USL - per connection
W40: Farms – Single Phase energy-billed [F1]
W41: General Service 50 to 499 kW
W42: General Service 50 to 699 kW
W43: General Service 50 to 999 kW
W44: General Service 50 to 999 kW - Interval Metered
W45: General Service 50 to 1,000 kW
W46: General Service 50 to 1,000 kW - Interval Meters
W47: General Service 50 to 1,000 kW - Non Interval Meters
W48: General Service 50 to 1,499 kW
W49: General Service 50 to 1,499 kW - Interval Metered
W50: General Service 50 to 2,499 kW
W51: General Service 50 to 2,999 kW
W52: General Service 50 to 2,999 kW - Time of Use
W53: General Service 50 to 4,999 kW
W54: General Service 50 to 4,999 kW – Interval Metered
W55: General Service 50 to 4,999 kW - Time of Use
W56: General Service 50 to 4,999 kW (CoGeneration)
W57: General Service 50 to 4,999 kW (formerly Time of Use)
W58: General Service 500 to 4,999 kW
W59: General Service 700 to 4,999 kW
W60: General Service 1,000 to 2,999 kW
W61: General Service 1,000 to 4,999 kW
W62: General Service 1,000 to 4,999 kW - Interval Meters
W63: General Service 1,000 To 4,999 kW (co-generation)
W64: General Service Greater Than 1,000 kW
W65: General Service Intermediate Rate Class 1,000 To 4,999 kW (formerly Large Use Customers)
W66: General Service Intermediate Rate Class 1,000 To 4,999 kW (formerly General Service > 50 kW Customers)
W67: General Service 1,500 to 4,999 kW
W68: General Service Equal To Or Greater Than 1,500 kW
W69: General Service Equal To Or Greater Than 1,500 kW - Interval Metered
W70: General Service Intermediate 1,000 To 4,999 kW
W71: General Service 2,500 to 4,999 kW
W72: General Service 3,000 to 4,999 kW
W73: General Service 3,000 to 4,999 kW - Interval Metered
W74: General Service 3,000 to 4,999 kW - Intermediate Use
W75: General Service 3,000 to 4,999 kW - Time of Use
W76: Intermediate With Self Generation
W77: General Service - Commercial
W78: General Service - Institutional
W79: Farms – Three Phase energy-billed [F3]
W80: Large Use
W81: Large Use - Regular
W82: Large Use > 5000 kW
W83: Large Use - 3TS
W84: Large Use - Ford Annex
W85: Unmetered Scattered Load
W86: Sentinel Lighting
W87: Street Lighting
W88: Embedded Distributor
W89: Low Voltage Wheeling Charge Rate
W90: Stand-By
W91: Standby Power
W92: Standby Power – INTERIM APPROVAL
W93: Standby Power - APPROVED ON AN INTERIM BASIS
W94: Standby - General Service 50 - 1,000 kW
W95: Standby Power General Service 50 to 1,499 kW
W96: Standby - General Service 1,000 - 5,000 kW
W97: Standby Power General Service 1,500 to 4,999 kW
W98: Standby - Large Use
W99: Standby Power General Service Large Use
W100: Standby Distribution Service

Sheet 4. RRR Data
B15: Rate Class | C15: Rate Description | D15: Unit | E15: Rate | F15: Non-Loss Adjusted Metered kWh | G15: Non-Loss Adjusted Metered kW | H15: Applicable Loss Factor eg: (1.0325) | I15: Loss Adjusted Billed kWh
B17: Residential | C17: RTSR - Network | D17: kWh | E17: 0.0062 | F17: 176056574.8 | G17: 0 | H17: 1.0393 | I17: =F17*H17 -> 182975598.2
B18: Residential | C18: RTSR - Connection | D18: kWh | E18: 0.0054 | F18: 176056574.8 | G18: 0 | H18: 1.0393 | I18: =F18*H18 -> 182975598.2
B19: General Service Less Than 50 kW | C19: RTSR - Network | D19: kWh | E19: 0.0055 | F19: 87047731.2 | G19: 0 | H19: 1.0393 | I19: =F19*H19 -> 90468707.04
B20: General Service Less Than 50 kW | C20: RTSR - Connection | D20: kWh | E20: 0.0049 | F20: 87047731.2 | G20: 0 | H20: 1.0393 | I20: =F20*H20 -> 90468707.04
B21: General Service 50 to 4,999 kW | C21: RTSR - Network | D21: kW | E21: 2.4449 | F21: 263290212.5 | G21: 649833.6
B22: General Service 50 to 4,999 kW | C22: RTSR - Connection | D22: kW | E22: 2.1294 | F22: 263290212.5 | G22: 649833.6
B23: Large Use | C23: RTSR - Network | D23: kW | E23: 2.9458 | F23: 158182936.5 | G23: 285841.7
B24: Large Use | C24: RTSR - Connection | D24: kW | E24: 2.5657 | F24: 158182936.5 | G24: 285841.7
B25: Unmetered Scattered Load | C25: RTSR - Network | D25: kWh | E25: 0.0062 | F25: 1270088.7 | G25: 0 | H25: 1.0393 | I25: =F25*H25 -> 1320003.186
B26: Unmetered Scattered Load | C26: RTSR - Connection | D26: kWh | E26: 0.0054 | F26: 1270088.7 | G26: 0 | H26: 1.0393 | I26: =F26*H26 -> 1320003.186
B27: Street Lighting | C27: RTSR - Network | D27: kW | E27: 1.766 | F27: 1981443.2 | G27: 5508
B28: Street Lighting | C28: RTSR - Connection | D28: kW | E28: 1.538 | F28: 1981443.2 | G28: 5508
B29: Standby Power | C29: RTSR - Network | I29: =F29*H29 -> 0
B30: Standby Power | C30: RTSR - Connection | I30: =F30*H30 -> 0

Sheet 5. UTRs and Sub-Transmission
B18: Uniform Transmission Rates | C18: Unit | E18: 2017 | H18: 2018 | J18: 2019
B20: Rate Description | E20: Rate | H20: Rate | J20: Rate
B22: Network Service Rate | C22: kW | E22: 3.66 | H22: 3.61 | J22: 3.61
B24: Line Connection Service Rate | C24: kW | E24: 0.87 | H24: 0.95 | J24: 0.95
B26: Transformation Connection Service Rate | C26: kW | E26: 2.02 | H26: 2.34 | J26: 2.34
B29: Hydro One Sub-Transmission Rates | C29: Unit | E29: 2017 | H29: 2018 | J29: 2019
B34: Rate Description | E34: Rate | H34: Rate | J34: Rate
B36: Network Service Rate | C36: kW | E36: 3.1942 | H36: 3.1942 | J36: 3.1942
B38: Line Connection Service Rate | C38: kW | E38: 0.771 | H38: 0.771 | J38: 0.771
E39: 1.7493
B40: Transformation Connection Service Rate | C40: kW | H40: 1.7493 | J40: 1.7493
B42: Both Line and Transformation Connection Service Rate | C42: kW | E42: =E39+E38 -> 2.5203 | H42: =SUM(H40,H38) -> 2.5203 | J42: =SUM(J40,J38) -> 2.5203
B45: If needed, add extra host here. (I) | C45: Unit | E45: 2017 | H45: 2018 | J45: 2019
B49: Rate Description | E49: Rate | H49: Rate | J49: Rate
B51: Network Service Rate | C51: kW
B53: Line Connection Service Rate | C53: kW
B55: Transformation Connection Service Rate | C55: kW
B57: Both Line and Transformation Connection Service Rate | C57: kW | E57: =SUM(E53,E55) -> 0 | H57: =SUM(H53,H55) -> 0 | J57: =J55+J53 -> 0
B60: If needed, add extra host here. (II) | C60: Unit | E60: Effective January 1, 2017 | H60: Effective January 1, 2018 | J60: Effective January 1, 2019
B64: Rate Description | E64: Rate | H64: Rate | J64: Rate
B66: Network Service Rate | C66: kW
B68: Line Connection Service Rate | C68: kW
B70: Transformation Connection Service Rate | C70: kW
B72: Both Line and Transformation Connection Service Rate | C72: kW | E72: =SUM(E68,E70) -> 0 | H72: =SUM(H68,H70) -> 0 | J72: =J70+J68 -> 0
E74: Historical 2017 | H74: Current 2018 | J74: Forecast 2019
B75: Low Voltage Switchgear Credit (if applicable, enter as a negative value) | C75: $

Sheet 6. Historical Wholesale
B21: IESO | D21: Network | H21: Line Connection | L21: Transformation Connection | P21: Total Line
B22: Month | D22: Units Billed | E22: Rate | F22: Amount | H22: Units Billed | I22: Rate | J22: Amount | L22: Units Billed | M22: Rate | N22: Amount | P22: Amount
B24: January | D24: =F24/E24 -> 49241 | E24: 3.66 | F24: 180222.06 | H24: =J24/I24 -> 55969 | I24: 0.87 | J24: 48693.03 | L24: =N24/M24 -> 55969 | M24: 2.02 | N24: 113057.38 | P24: =J24+N24 -> 161750.41
B25: February | D25: 52174 | E25: 3.66 | F25: 190956.84 | H25: 52241 | I25: 0.87 | J25: 45449.67 | L25: 52241 | M25: 2.02 | N25: 105526.82 | P25: 150976.49
B26: March | D26: 50907 | E26: 3.66 | F26: 186319.62 | H26: 60347 | I26: 0.87 | J26: 52501.89 | L26: 60347 | M26: 2.02 | N26: 121900.94 | P26: 174402.83
B27: April | D27: 46827 | E27: 3.66 | F27: 171386.82 | H27: 64526.73563 | I27: 0.87 | J27: 56138.26 | L27: 64526.74257 | M27: 2.02 | N27: 130344.02 | P27: 186482.28
B28: May | D28: 32117 | E28: 3.66 | F28: 117548.22 | H28: 36132 | I28: 0.87 | J28: 31434.84 | L28: 36132 | M28: 2.02 | N28: 72986.64 | P28: 104421.48
B29: June | D29: 35008 | E29: 3.66 | F29: 128129.28 | H29: 41186 | I29: 0.87 | J29: 35831.82 | L29: 41186 | M29: 2.02 | N29: 83195.72 | P29: 119027.54
B30: July | D30: 40098 | E30: 3.66 | F30: 146758.68 | H30: 47174 | I30: 0.87 | J30: 41041.38 | L30: 47174 | M30: 2.02 | N30: 95291.48 | P30: 136332.86
B31: August | D31: 42298 | E31: 3.66 | F31: 154810.68 | H31: 49471 | I31: 0.87 | J31: 43039.77 | L31: 49471 | M31: 2.02 | N31: 99931.42 | P31: 142971.19
B32: September | D32: 39932 | E32: 3.66 | F32: 146151.12 | H32: 47270 | I32: 0.87 | J32: 41124.9 | L32: 47270 | M32: 2.02 | N32: 95485.4 | P32: 136610.3
B33: October | D33: 58484 | E33: 3.66 | F33: 214051.44 | H33: 68805 | I33: 0.87 | J33: 59860.35 | L33: 68805 | M33: 2.02 | N33: 138986.1 | P33: 198846.45
B34: November | D34: 28349.17045 | E34: 3.52 | F34: 99789.08 | H34: 53056.34091 | I34: 0.88 | J34: 46689.58 | L34: 73747.38498 | M34: 2.13 | N34: 157081.93 | P34: 203771.51
B35: December | D35: =F35/E35 -> 61166.82955 | E35: 3.52 | F35: 215307.24 | H35: =J35/I35 -> 45208.65909 | I35: 0.88 | J35: 39783.62 | L35: =N35/M35 -> 24517.61502 | M35: 2.13 | N35: 52222.52 | P35: 92006.14
B37: Total | D37: =SUM(D24:D35) -> 536602 | E37: =IF(D37<>0,F37/D37,0) -> 3.636645186 | F37: =SUM(F24:F35) -> 1951431.08 | H37: =SUM(H24:H35) -> 621386.7356 | I37: =IF(H37<>0,J37/H37,0) -> 0.8715813823 | J37: =SUM(J24:J35) -> 541589.11 | L37: =SUM(L24:L35) -> 621386.7426 | M37: =IF(L37<>0,N37/L37,0) -> 2.037395205 | N37: =SUM(N24:N35) -> 1266010.37 | P37: =SUM(P24:P35) -> 1807599.48
B39: Hydro One | D39: Network | H39: Line Connection | L39: Transformation Connection | P39: Total Line
B41: Month | D41: Units Billed | E41: Rate | F41: Amount | H41: Units Billed | I41: Rate | J41: Amount | L41: Units Billed | M41: Rate | N41: Amount | P41: Amount
B43: January | D43: 67084.04 | E43: =IF(D43<>0,F43/D43,0) -> 3.1942 | F43: 214279.8406 | H43: 67084.04 | I43: =IF(H43<>0,J43/H43,0) -> 1.7493 | J43: 117350.1112 | L43: 67084.04 | M43: =IF(L43<>0,N43/L43,0) -> 0.771 | N43: 51721.79484 | P43: =J43+N43 -> 169071.906
B44: February | D44: 67633.33 | E44: =IF(D44<>0,F44/D44,0) -> 3.1942 | F44: 216034.3827 | H44: 67633.33 | I44: =IF(H44<>0,J44/H44,0) -> 1.7493 | J44: 118310.9842 | L44: 67633.33 | M44: =IF(L44<>0,N44/L44,0) -> 0.771 | N44: 52145.29743 | P44: 170456.2816
B45: March | D45: 67764.77 | E45: 3.1942 | F45: 216454.2283 | H45: 67764.77 | I45: 1.7493 | J45: 118540.9122 | L45: 67764.77 | M45: 0.771 | N45: 52246.63767 | P45: 170787.5498
B46: April | D46: 54441.02 | E46: 3.1942 | F46: 173895.5061 | H46: 54441.02 | I46: 1.7493 | J46: 95233.67629 | L46: 54441.02 | M46: 0.771 | N46: 41974.02642 | P46: 137207.7027
B47: May | D47: 64056.76 | E47: 3.1942 | F47: 204610.1028 | H47: 64056.76 | I47: 1.7493 | J47: 112054.4903 | L47: 64056.76 | M47: 0.771 | N47: 49387.76196 | P47: 161442.2522
B48: June | D48: 63224.14 | E48: 3.1942 | F48: 201950.548 | H48: 63224.14 | I48: 1.7493 | J48: 110597.9881 | L48: 63224.14 | M48: 0.771 | N48: 48745.81194 | P48: 159343.8
B49: July | D49: 61485.35 | E49: 3.194200082 | F49: 196396.51 | H49: 61485.35 | I49: 1.749300118 | J49: 107556.33 | L49: 61485.35 | M49: 0.7710000838 | N49: 47405.21 | P49: 154961.54
B50: August | D50: 62317.17 | E50: 3.194199929 | F50: 199053.5 | H50: 62317.17 | I50: 1.749299912 | J50: 109011.42 | L50: 62317.17 | M50: 0.771000031 | N50: 48046.54 | P50: 157057.96
B51: September | D51: 67679.17 | E51: 3.194200077 | F51: 216180.81 | H51: 67679.17 | I51: 1.749299969 | J51: 118391.17 | L51: 67679.17 | M51: 0.770999999 | N51: 52180.64 | P51: 170571.81
B52: October | D52: 59563.02 | E52: 3.194199858 | F52: 190256.19 | H52: 59563.02 | I52: 1.749299985 | J52: 104193.59 | L52: 59563.02 | M52: 0.7709998586 | N52: 45923.08 | P52: 150116.67
B53: November | D53: 84089.68 | E53: 3.19419993 | F53: 268599.25 | H53: 84089.68 | I53: 1.749300033 | J53: 147098.08 | L53: 84089.68 | M53: 0.770999961 | N53: 64833.14 | P53: 211931.22
B54: December | D54: 69124.8 | E54: 3.194200056 | F54: 220798.44 | H54: 71073.78 | I54: 1.749299953 | J54: 124329.36 | L54: 71073.78 | M54: 0.7710000791 | N54: 54797.89 | P54: 179127.25
B56: Total | D56: =SUM(D43:D54) -> 788463.25 | E56: =IF(D56<>0,F56/D56,0) -> 3.194199994 | F56: =SUM(F43:F54) -> 2518509.308 | H56: =SUM(H43:H54) -> 790412.23 | I56: =IF(H56<>0,J56/H56,0) -> 1.749299998 | J56: =SUM(J43:J54) -> 1382668.112 | L56: =SUM(L43:L54) -> 790412.23 | M56: =IF(L56<>0,N56/L56,0) -> 0.7710000012 | N56: =SUM(N43:N54) -> 609407.8303 | P56: =SUM(P43:P54) -> 1992075.942
B58: Add Extra Host Here (I) | D58: Network | H58: Line Connection | L58: Transformation Connection | P58: Total Line
B59: (if needed)
B60: Month | D60: Units Billed | E60: Rate | F60: Amount | H60: Units Billed | I60: Rate | J60: Amount | L60: Units Billed | M60: Rate | N60: Amount | P60: Amount
B62: January | E62: =IF(D62<>0,F62/D62,0) -> 0 | I62: =IF(H62<>0,J62/H62,0) -> 0 | M62: =IF(L62<>0,N62/L62,0) -> 0 | P62: =J62+N62 -> 0
B63: February | E63: 0 | I63: 0 | M63: 0 | P63: 0
B64: March | E64: 0 | I64: 0 | M64: 0 | P64: 0
B65: April | E65: 0 | I65: 0 | M65: 0 | P65: 0
B66: May | E66: 0 | I66: 0 | M66: 0 | P66: 0
B67: June | E67: 0 | I67: 0 | M67: 0 | P67: 0
B68: July | E68: 0 | I68: 0 | M68: 0 | P68: 0
B69: August | E69: 0 | I69: 0 | M69: 0 | P69: 0
B70: September | E70: 0 | I70: 0 | M70: 0 | P70: 0
B71: October | E71: 0 | I71: 0 | M71: 0 | P71: 0
B72: November | E72: 0 | I72: 0 | M72: 0 | P72: 0
B73: December | E73: 0 | I73: 0 | M73: 0 | P73: 0
B75: Total | D75: =SUM(D62:D73) -> 0 | E75: =IF(D75<>0,F75/D75,0) -> 0 | F75: =SUM(F62:F73) -> 0 | H75: =SUM(H62:H73) -> 0 | I75: =IF(H75<>0,J75/H75,0) -> 0 | J75: =SUM(J62:J73) -> 0 | L75: =SUM(L62:L73) -> 0 | M75: =IF(L75<>0,N75/L75,0) -> 0 | N75: =SUM(N62:N73) -> 0 | P75: =SUM(P62:P73) -> 0
B77: Add Extra Host Here (II) | D77: Network | H77: Line Connection | L77: Transformation Connection | P77: Total Line
B78: (if needed)
B79: Month | D79: Units Billed | E79: Rate | F79: Amount | H79: Units Billed | I79: Rate | J79: Amount | L79: Units Billed | M79: Rate | N79: Amount | P79: Amount
B81: January | E81: =IF(D81<>0,F81/D81,0) -> 0 | I81: =IF(H81<>0,J81/H81,0) -> 0 | M81: =IF(L81<>0,N81/L81,0) -> 0 | P81: =J81+N81 -> 0
B82: February | E82: 0 | I82: 0 | M82: 0 | P82: 0
B83: March | E83: 0 | I83: 0 | M83: 0 | P83: 0
B84: April | E84: 0 | I84: 0 | M84: 0 | P84: 0
B85: May | E85: 0 | I85: 0 | M85: 0 | P85: 0
B86: June | E86: 0 | I86: 0 | M86: 0 | P86: 0
B87: July | E87: 0 | I87: 0 | M87: 0 | P87: 0
B88: August | E88: 0 | I88: 0 | M88: 0 | P88: 0
B89: September | E89: 0 | I89: 0 | M89: 0 | P89: 0
B90: October | E90: 0 | I90: 0 | M90: 0 | P90: 0
B91: November | E91: 0 | I91: 0 | M91: 0 | P91: 0
B92: December | E92: 0 | I92: 0 | M92: 0 | P92: 0
B94: Total | D94: =SUM(D81:D92) -> 0 | E94: =IF(D94<>0,F94/D94,0) -> 0 | F94: =SUM(F81:F92) -> 0 | H94: =SUM(H81:H92) -> 0 | I94: =IF(H94<>0,J94/H94,0) -> 0 | J94: =SUM(J81:J92) -> 0 | L94: =SUM(L81:L92) -> 0 | M94: =IF(L94<>0,N94/L94,0) -> 0 | N94: =SUM(N81:N92) -> 0 | P94: =SUM(P81:P92) -> 0
B96: Total | D96: Network | H96: Line Connection | L96: Transformation Connection | P96: Total Line
B98: Month | D98: Units Billed | E98: Rate | F98: Amount | H98: Units Billed | I98: Rate | J98: Amount | L98: Units Billed | M98: Rate | N98: Amount | P98: Amount
B100: January | D100: =D24+D43+D62+D81 -> 116325.04 | E100: =IF(D100<>0,F100/D100,0) -> 3.391375585 | F100: =F24+F43+F62+F81 -> 394501.9006 | H100: =H24+H43+H62+H81 -> 123053.04 | I100: =IF(H100<>0,J100/H100,0) -> 1.349362366 | J100: =J24+J43+J62+J81 -> 166043.1412 | L100: =L24+L43+L62+L81 -> 123053.04 | M100: =IF(L100<>0,N100/L100,0) -> 1.339090646 | N100: =N24+N43+N62+N81 -> 164779.1748 | P100: =J100+N100 -> 330822.316
B101: February | D101: =D25+D44+D63+D82 -> 119807.33 | E101: 3.397047766 | F101: =F25+F44+F63+F82 -> 406991.2227 | H101: =H25+H44+H63+H82 -> 119874.33 | I101: 1.366102769 | J101: =J25+J44+J63+J82 -> 163760.6542 | L101: =L25+L44+L63+L82 -> 119874.33 | M101: 1.315311772 | N101: =N25+N44+N63+N82 -> 157672.1174 | P101: 321432.7716
B102: March | D102: 118671.77 | E102: 3.394015682 | F102: 402773.8483 | H102: 128111.77 | I102: 1.335106073 | J102: 171042.8022 | L102: 128111.77 | M102: 1.35934097 | N102: 174147.5777 | P102: 345190.3798
B103: April | D103: 101268.02 | E103: 3.409588991 | F103: 345282.3261 | H103: 118967.7556 | I103: 1.272377843 | J103: 151371.9363 | L103: 118967.7626 | M103: 1.448443197 | N103: 172318.0464 | P103: 323689.9827
B104: May | D104: 96173.76 | E104: 3.34975281 | F104: 322158.3228 | H104: 100188.76 | I104: 1.432189901 | J104: 143489.3303 | L104: 100188.76 | M104: 1.221438432 | N104: 122374.402 | P104: 265863.7322
B105: June | D105: 98232.14 | E105: 3.360201946 | F105: 330079.828 | H105: 104410.14 | I105: 1.402448154 | J105: 146429.8081 | L105: 104410.14 | M105: 1.26368504 | N105: 131941.5319 | P105: 278371.34
B106: July | D106: 101583.35 | E106: 3.378065303 | F106: 343155.19 | H106: 108659.35 | I106: 1.367555668 | J106: 148597.71 | L106: 108659.35 | M106: 1.313248147 | N106: 142696.69 | P106: 291294.4
B107: August | D107: 104615.17 | E107: 3.382532189 | F107: 353864.18 | H107: 111788.17 | I107: 1.360172458 | J107: 152051.19 | L107: 111788.17 | M107: 1.323735419 | N107: 147977.96 | P107: 300029.15
B108: September | D108: 107611.17 | E108: 3.367047584 | F108: 362331.93 | H108: 114949.17 | I108: 1.387709629 | J108: 159516.07 | L108: 114949.17 | M108: 1.284620324 | N108: 147666.04 | P108: 307182.11
B109: October | D109: 118047.02 | E109: 3.424971084 | F109: 404307.63 | H109: 128368.02 | I109: 1.277996965 | J109: 164053.94 | L109: 128368.02 | M109: 1.440461417 | N109: 184909.18 | P109: 348963.12
B110: November | D110: 112438.8505 | E110: 3.276343795 | F110: 368388.33 | H110: 137146.0209 | I110: 1.413002424 | J110: 193787.66 | L110: 157837.065 | M110: 1.40597565 | N110: 221915.07 | P110: 415702.73
B111: December | D111: 130291.6295 | E111: 3.3471504 | F111: 436105.68 | H111: 116282.4391 | I111: 1.411330733 | J111: 164112.98 | L111: 95591.39502 | M111: 1.119561128 | N111: 107020.41 | P111: 271133.39
B113: Total | D113: =SUM(D100:D111) -> 1325065.25 | E113: =IF(D113<>0,F113/D113,0) -> 3.373373793 | F113: =SUM(F100:F111) -> 4469940.388 | H113: =SUM(H100:H111) -> 1411798.966 | I113: =IF(H113<>0,J113/H113,0) -> 1.362982456 | J113: =SUM(J100:J111) -> 1924257.222 | L113: =SUM(L100:L111) -> 1411798.973 | M113: =IF(L113<>0,N113/L113,0) -> 1.328388982 | N113: =SUM(N100:N111) -> 1875418.2 | P113: =SUM(P100:P111) -> 3799675.422
N115: Low Voltage Switchgear Credit (if applicable) | P115: ='5. UTRs and Sub-Transmission'!E75 -> 0
N117: Total including deduction for Low Voltage Switchgear Credit | P117: =P113+P115 -> 3799675.422

Sheet 7. Current Wholesale
B13: The purpose of this sheet is to calculate the expected billing when current 2018 Uniform Transmission Rates are applied against historical 2017 transmission units.
B20: IESO | D20: Network | H20: Line Connection | L20: Transformation Connection | P20: Total Line
B22: Month | D22: Units Billed | E22: Rate | F22: Amount | H22: Units Billed | I22: Rate | J22: Amount | L22: Units Billed | M22: Rate | N22: Amount | P22: Amount
B24: January | D24: ='6. Historical Wholesale'!D24 -> 49241 | E24: ='5. UTRs and Sub-Transmission'!H22 -> 3.61 | F24: =D24*E24 -> 177760.01 | H24: ='6. Historical Wholesale'!H24 -> 55969 | I24: ='5. UTRs and Sub-Transmission'!H24 -> 0.95 | J24: =H24*I24 -> 53170.55 | L24: ='6. Historical Wholesale'!L24 -> 55969 | M24: ='5. UTRs and Sub-Transmission'!H26 -> 2.34 | N24: =L24*M24 -> 130967.46 | P24: =J24+N24 -> 184138.01
B25: February | D25: ='6. Historical Wholesale'!D25 -> 52174 | E25: =E24 -> 3.61 | F25: =D25*E25 -> 188348.14 | H25: ='6. Historical Wholesale'!H25 -> 52241 | I25: =I24 -> 0.95 | J25: =H25*I25 -> 49628.95 | L25: ='6. Historical Wholesale'!L25 -> 52241 | M25: =M24 -> 2.34 | N25: =L25*M25 -> 122243.94 | P25: 171872.89
B26: March | D26: ='6. Historical Wholesale'!D26 -> 50907 | E26: =E25 -> 3.61 | F26: 183774.27 | H26: ='6. Historical Wholesale'!H26 -> 60347 | I26: =I25 -> 0.95 | J26: 57329.65 | L26: ='6. Historical Wholesale'!L26 -> 60347 | M26: =M25 -> 2.34 | N26: 141211.98 | P26: 198541.63
B27: April | D27: ='6. Historical Wholesale'!D27 -> 46827 | E27: 3.61 | F27: 169045.47 | H27: ='6. Historical Wholesale'!H27 -> 64526.73563 | I27: 0.95 | J27: 61300.39885 | L27: ='6. Historical Wholesale'!L27 -> 64526.74257 | M27: 2.34 | N27: 150992.5776 | P27: 212292.9765
B28: May | D28: ='6. Historical Wholesale'!D28 -> 32117 | E28: 3.61 | F28: 115942.37 | H28: ='6. Historical Wholesale'!H28 -> 36132 | I28: 0.95 | J28: 34325.4 | L28: ='6. Historical Wholesale'!L28 -> 36132 | M28: 2.34 | N28: 84548.88 | P28: 118874.28
B29: June | D29: ='6. Historical Wholesale'!D29 -> 35008 | E29: 3.61 | F29: 126378.88 | H29: ='6. Historical Wholesale'!H29 -> 41186 | I29: 0.95 | J29: 39126.7 | L29: ='6. Historical Wholesale'!L29 -> 41186 | M29: 2.34 | N29: 96375.24 | P29: 135501.94
B30: July | D30: ='6. Historical Wholesale'!D30 -> 40098 | E30: 3.61 | F30: 144753.78 | H30: ='6. Historical Wholesale'!H30 -> 47174 | I30: 0.95 | J30: 44815.3 | L30: ='6. Historical Wholesale'!L30 -> 47174 | M30: 2.34 | N30: 110387.16 | P30: 155202.46
B31: August | D31: ='6. Historical Wholesale'!D31 -> 42298 | E31: 3.61 | F31: 152695.78 | H31: ='6. Historical Wholesale'!H31 -> 49471 | I31: 0.95 | J31: 46997.45 | L31: ='6. Historical Wholesale'!L31 -> 49471 | M31: 2.34 | N31: 115762.14 | P31: 162759.59
B32: September | D32: ='6. Historical Wholesale'!D32 -> 39932 | E32: 3.61 | F32: 144154.52 | H32: ='6. Historical Wholesale'!H32 -> 47270 | I32: 0.95 | J32: 44906.5 | L32: ='6. Historical Wholesale'!L32 -> 47270 | M32: 2.34 | N32: 110611.8 | P32: 155518.3
B33: October | D33: ='6. Historical Wholesale'!D33 -> 58484 | E33: 3.61 | F33: 211127.24 | H33: ='6. Historical Wholesale'!H33 -> 68805 | I33: 0.95 | J33: 65364.75 | L33: ='6. Historical Wholesale'!L33 -> 68805 | M33: 2.34 | N33: 161003.7 | P33: 226368.45
B34: November | D34: ='6. Historical Wholesale'!D34 -> 28349.17045 | E34: 3.61 | F34: 102340.5053 | H34: ='6. Historical Wholesale'!H34 -> 53056.34091 | I34: 0.95 | J34: 50403.52386 | L34: ='6. Historical Wholesale'!L34 -> 73747.38498 | M34: 2.34 | N34: 172568.8808 | P34: 222972.4047
B35: December | D35: ='6. Historical Wholesale'!D35 -> 61166.82955 | E35: 3.61 | F35: 220812.2547 | H35: ='6. Historical Wholesale'!H35 -> 45208.65909 | I35: 0.95 | J35: 42948.22614 | L35: ='6. Historical Wholesale'!L35 -> 24517.61502 | M35: 2.34 | N35: 57371.21915 | P35: 100319.4453
B37: Total | D37: =SUM(D24:D35) -> 536602 | E37: =IF(D37<>0,F37/D37,0) -> 3.61 | F37: =SUM(F24:F35) -> 1937133.22 | H37: =SUM(H24:H35) -> 621386.7356 | I37: =IF(H37<>0,J37/H37,0) -> 0.95 | J37: =SUM(J24:J35) -> 590317.3989 | L37: =SUM(L24:L35) -> 621386.7426 | M37: =IF(L37<>0,N37/L37,0) -> 2.34 | N37: =SUM(N24:N35) -> 1454044.978 | P37: =SUM(P24:P35) -> 2044362.376
B39: Hydro One | D39: Network | H39: Line Connection | L39: Transformation Connection | P39: Total Line
B41: Month | D41: Units Billed | E41: Rate | F41: Amount | H41: Units Billed | I41: Rate | J41: Amount | L41: Units Billed | M41: Rate | N41: Amount | P41: Amount
B43: January | D43: ='6. Historical Wholesale'!D43 -> 67084.04 | E43: ='5. UTRs and Sub-Transmission'!H36 -> 3.1942 | F43: =D43*E43 -> 214279.8406 | H43: ='6. Historical Wholesale'!H43 -> 67084.04 | I43: ='5. UTRs and Sub-Transmission'!H38 -> 0.771 | J43: =H43*I43 -> 51721.79484 | L43: ='6. Historical Wholesale'!L43 -> 67084.04 | M43: ='5. UTRs and Sub-Transmission'!H40 -> 1.7493 | N43: =L43*M43 -> 117350.1112 | P43: =J43+N43 -> 169071.906
B44: February | D44: ='6. Historical Wholesale'!D44 -> 67633.33 | E44: =E43 -> 3.1942 | F44: =D44*E44 -> 216034.3827 | H44: ='6. Historical Wholesale'!H44 -> 67633.33 | I44: =I43 -> 0.771 | J44: =H44*I44 -> 52145.29743 | L44: ='6. Historical Wholesale'!L44 -> 67633.33 | M44: =M43 -> 1.7493 | N44: =L44*M44 -> 118310.9842 | P44: 170456.2816
B45: March | D45: ='6. Historical Wholesale'!D45 -> 67764.77 | E45: 3.1942 | F45: 216454.2283 | H45: ='6. Historical Wholesale'!H45 -> 67764.77 | I45: 0.771 | J45: 52246.63767 | L45: ='6. Historical Wholesale'!L45 -> 67764.77 | M45: =M44 -> 1.7493 | N45: 118540.9122 | P45: 170787.5498
B46: April | D46: ='6. Historical Wholesale'!D46 -> 54441.02 | E46: 3.1942 | F46: 173895.5061 | H46: ='6. Historical Wholesale'!H46 -> 54441.02 | I46: 0.771 | J46: 41974.02642 | L46: ='6. Historical Wholesale'!L46 -> 54441.02 | M46: =M45 -> 1.7493 | N46: 95233.67629 | P46: 137207.7027
B47: May | D47: ='6. Historical Wholesale'!D47 -> 64056.76 | E47: 3.1942 | F47: 204610.1028 | H47: ='6. Historical Wholesale'!H47 -> 64056.76 | I47: 0.771 | J47: 49387.76196 | L47: ='6. Historical Wholesale'!L47 -> 64056.76 | M47: 1.7493 | N47: 112054.4903 | P47: 161442.2522
B48: June | D48: ='6. Historical Wholesale'!D48 -> 63224.14 | E48: 3.1942 | F48: 201950.548 | H48: ='6. Historical Wholesale'!H48 -> 63224.14 | I48: 0.771 | J48: 48745.81194 | L48: ='6. Historical Wholesale'!L48 -> 63224.14 | M48: 1.7493 | N48: 110597.9881 | P48: 159343.8
B49: July | D49: ='6. Historical Wholesale'!D49 -> 61485.35 | E49: 3.1942 | F49: 196396.505 | H49: ='6. Historical Wholesale'!H49 -> 61485.35 | I49: 0.771 | J49: 47405.20485 | L49: ='6. Historical Wholesale'!L49 -> 61485.35 | M49: 1.7493 | N49: 107556.3228 | P49: 154961.5276
B50: August | D50: ='6. Historical Wholesale'!D50 -> 62317.17 | E50: 3.1942 | F50: 199053.5044 | H50: ='6. Historical Wholesale'!H50 -> 62317.17 | I50: 0.771 | J50: 48046.53807 | L50: ='6. Historical Wholesale'!L50 -> 62317.17 | M50: 1.7493 | N50: 109011.4255 | P50: 157057.9636
B51: September | D51: ='6. Historical Wholesale'!D51 -> 67679.17 | E51: 3.1942 | F51: 216180.8048 | H51: ='6. Historical Wholesale'!H51 -> 67679.17 | I51: 0.771 | J51: 52180.64007 | L51: ='6. Historical Wholesale'!L51 -> 67679.17 | M51: 1.7493 | N51: 118391.1721 | P51: 170571.8122
B52: October | D52: ='6. Historical Wholesale'!D52 -> 59563.02 | E52: 3.1942 | F52: 190256.1985 | H52: ='6. Historical Wholesale'!H52 -> 59563.02 | I52: 0.771 | J52: 45923.08842 | L52: ='6. Historical Wholesale'!L52 -> 59563.02 | M52: 1.7493 | N52: 104193.5909 | P52: 150116.6793
B53: November | D53: ='6. Historical Wholesale'!D53 -> 84089.68 | E53: 3.1942 | F53: 268599.2559 | H53: ='6. Historical Wholesale'!H53 -> 84089.68 | I53: 0.771 | J53: 64833.14328 | L53: ='6. Historical Wholesale'!L53 -> 84089.68 | M53: 1.7493 | N53: 147098.0772 | P53: 211931.2205
B54: December | D54: ='6. Historical Wholesale'!D54 -> 69124.8 | E54: 3.1942 | F54: 220798.4362 | H54: ='6. Historical Wholesale'!H54 -> 71073.78 | I54: 0.771 | J54: 54797.88438 | L54: ='6. Historical Wholesale'!L54 -> 71073.78 | M54: 1.7493 | N54: 124329.3634 | P54: 179127.2477
B56: Total | D56: =SUM(D43:D54) -> 788463.25 | E56: =IF(D56<>0,F56/D56,0) -> 3.1942 | F56: =SUM(F43:F54) -> 2518509.313 | H56: =SUM(H43:H54) -> 790412.23 | I56: =IF(H56<>0,J56/H56,0) -> 0.771 | J56: =SUM(J43:J54) -> 609407.8293 | L56: =SUM(L43:L54) -> 790412.23 | M56: =IF(L56<>0,N56/L56,0) -> 1.7493 | N56: =SUM(N43:N54) -> 1382668.114 | P56: =SUM(P43:P54) -> 1992075.943
B58: ='6. Historical Wholesale'!B58 -> Add Extra Host Here (I) | D58: Network | H58: Line Connection | L58: Transformation Connection | P58: Total Line
B60: Month | D60: Units Billed | E60: Rate | F60: Amount | H60: Units Billed | I60: Rate | J60: Amount | L60: Units Billed | M60: Rate | N60: Amount | P60: Amount
B62: January | D62: ='6. Historical Wholesale'!D62 -> 0 | E62: ='5. UTRs and Sub-Transmission'!H51 -> 0 | F62: =D62*E62 -> 0 | H62: ='6. Historical Wholesale'!H62 -> 0 | I62: ='5. UTRs and Sub-Transmission'!H53 -> 0 | J62: =H62*I62 -> 0 | L62: ='6. Historical Wholesale'!L62 -> 0 | M62: ='5. UTRs and Sub-Transmission'!H55 -> 0 | N62: =L62*M62 -> 0 | P62: =J62+N62 -> 0
B63: February | D63: ='6. Historical Wholesale'!D63 -> 0 | E63: =E62 -> 0 | F63: =D63*E63 -> 0 | H63: ='6. Historical Wholesale'!H63 -> 0 | I63: =I62 -> 0 | J63: =H63*I63 -> 0 | L63: ='6. Historical Wholesale'!L63 -> 0 | M63: =M62 -> 0 | N63: =L63*M63 -> 0 | P63: 0
B64: March | D64: ='6. Historical Wholesale'!D64 -> 0 | E64: =E63 -> 0 | F64: 0 | H64: ='6. Historical Wholesale'!H64 -> 0 | I64: =I63 -> 0 | J64: 0 | L64: ='6. Historical Wholesale'!L64 -> 0 | M64: =M63 -> 0 | N64: 0 | P64: 0
B65: April | D65: ='6. Historical Wholesale'!D65 -> 0 | E65: 0 | F65: 0 | H65: ='6. Historical Wholesale'!H65 -> 0 | I65: 0 | J65: 0 | L65: ='6. Historical Wholesale'!L65 -> 0 | M65: =M64 -> 0 | N65: 0 | P65: 0
B66: May | D66: ='6. Historical Wholesale'!D66 -> 0 | E66: 0 | F66: 0 | H66: ='6. Historical Wholesale'!H66 -> 0 | I66: 0 | J66: 0 | L66: ='6. Historical Wholesale'!L66 -> 0 | M66: 0 | N66: 0 | P66: 0
B67: June | D67: ='6. Historical Wholesale'!D67 -> 0 | E67: 0 | F67: 0 | H67: ='6. Historical Wholesale'!H67 -> 0 | I67: 0 | J67: 0 | L67: ='6. Historical Wholesale'!L67 -> 0 | M67: 0 | N67: 0 | P67: 0
B68: July | D68: ='6. Historical Wholesale'!D68 -> 0 | E68: 0 | F68: 0 | H68: ='6. Historical Wholesale'!H68 -> 0 | I68: 0 | J68: 0 | L68: ='6. Historical Wholesale'!L68 -> 0 | M68: 0 | N68: 0 | P68: 0
B69: August | D69: ='6. Historical Wholesale'!D69 -> 0 | E69: 0 | F69: 0 | H69: ='6. Historical Wholesale'!H69 -> 0 | I69: 0 | J69: 0 | L69: ='6. Historical Wholesale'!L69 -> 0 | M69: 0 | N69: 0 | P69: 0
B70: September | D70: ='6. Historical Wholesale'!D70 -> 0 | E70: 0 | F70: 0 | H70: ='6. Historical Wholesale'!H70 -> 0 | I70: 0 | J70: 0 | L70: ='6. Historical Wholesale'!L70 -> 0 | M70: 0 | N70: 0 | P70: 0
B71: October | D71: ='6. Historical Wholesale'!D71 -> 0 | E71: 0 | F71: 0 | H71: ='6. Historical Wholesale'!H71 -> 0 | I71: 0 | J71: 0 | L71: ='6. Historical Wholesale'!L71 -> 0 | M71: 0 | N71: 0 | P71: 0
B72: November | D72: ='6. Historical Wholesale'!D72 -> 0 | E72: 0 | F72: 0 | H72: ='6. Historical Wholesale'!H72 -> 0 | I72: 0 | J72: 0 | L72: ='6. Historical Wholesale'!L72 -> 0 | M72: 0 | N72: 0 | P72: 0
B73: December | D73: ='6. Historical Wholesale'!D73 -> 0 | E73: 0 | F73: 0 | H73: ='6. Historical Wholesale'!H73 -> 0 | I73: 0 | J73: 0 | L73: ='6. Historical Wholesale'!L73 -> 0 | M73: 0 | N73: 0 | P73: 0
B75: Total | D75: =SUM(D62:D73) -> 0 | E75: =IF(D75<>0,F75/D75,0) -> 0 | F75: =SUM(F62:F73) -> 0 | H75: =SUM(H62:H73) -> 0 | I75: =IF(H75<>0,J75/H75,0) -> 0 | J75: =SUM(J62:J73) -> 0 | L75: =SUM(L62:L73) -> 0 | M75: =IF(L75<>0,N75/L75,0) -> 0 | N75: =SUM(N62:N73) -> 0 | P75: =SUM(P62:P73) -> 0
B77: ='6. Historical Wholesale'!B77 -> Add Extra Host Here (II) | D77: Network | H77: Line Connection | L77: Transformation Connection | P77: Total Line
B79: Month | D79: Units Billed | E79: Rate | F79: Amount | H79: Units Billed | I79: Rate | J79: Amount | L79: Units Billed | M79: Rate | N79: Amount | P79: Amount
B81: January | D81: ='6. Historical Wholesale'!D81 -> 0 | E81: ='5. UTRs and Sub-Transmission'!H66 -> 0 | F81: =D81*E81 -> 0 | H81: ='6. Historical Wholesale'!H81 -> 0 | I81: ='5. UTRs and Sub-Transmission'!H68 -> 0 | J81: =H81*I81 -> 0 | L81: ='6. Historical Wholesale'!L81 -> 0 | M81: ='5. UTRs and Sub-Transmission'!H70 -> 0 | N81: =L81*M81 -> 0 | P81: =J81+N81 -> 0
B82: February | D82: ='6. Historical Wholesale'!D82 -> 0 | E82: =E81 -> 0 | F82: =D82*E82 -> 0 | H82: ='6. Historical Wholesale'!H82 -> 0 | I82: =I81 -> 0 | J82: =H82*I82 -> 0 | L82: ='6. Historical Wholesale'!L82 -> 0 | M82: =M81 -> 0 | N82: =L82*M82 -> 0 | P82: 0
B83: March | D83: ='6. Historical Wholesale'!D83 -> 0 | E83: =E82 -> 0 | F83: 0 | H83: ='6. Historical Wholesale'!H83 -> 0 | I83: =I82 -> 0 | J83: 0 | L83: ='6. Historical Wholesale'!L83 -> 0 | M83: =M82 -> 0 | N83: 0 | P83: 0
B84: April | D84: ='6. Historical Wholesale'!D84 -> 0 | E84: 0 | F84: 0 | H84: ='6. Historical Wholesale'!H84 -> 0 | I84: 0 | J84: 0 | L84: ='6. Historical Wholesale'!L84 -> 0 | M84: =M83 -> 0 | N84: 0 | P84: 0
B85: May | D85: ='6. Historical Wholesale'!D85 -> 0 | E85: 0 | F85: 0 | H85: ='6. Historical Wholesale'!H85 -> 0 | I85: 0 | J85: 0 | L85: ='6. Historical Wholesale'!L85 -> 0 | M85: 0 | N85: 0 | P85: 0
B86: June | D86: ='6. Historical Wholesale'!D86 -> 0 | E86: 0 | F86: 0 | H86: ='6. Historical Wholesale'!H86 -> 0 | I86: 0 | J86: 0 | L86: ='6. Historical Wholesale'!L86 -> 0 | M86: 0 | N86: 0 | P86: 0
B87: July | D87: ='6. Historical Wholesale'!D87 -> 0 | E87: 0 | F87: 0 | H87: ='6. Historical Wholesale'!H87 -> 0 | I87: 0 | J87: 0 | L87: ='6. Historical Wholesale'!L87 -> 0 | M87: 0 | N87: 0 | P87: 0
B88: August | D88: ='6. Historical Wholesale'!D88 -> 0 | E88: 0 | F88: 0 | H88: ='6. Historical Wholesale'!H88 -> 0 | I88: 0 | J88: 0 | L88: ='6. Historical Wholesale'!L88 -> 0 | M88: 0 | N88: 0 | P88: 0
B89: September | D89: ='6. Historical Wholesale'!D89 -> 0 | E89: 0 | F89: 0 | H89: ='6. Historical Wholesale'!H89 -> 0 | I89: 0 | J89: 0 | L89: ='6. Historical Wholesale'!L89 -> 0 | M89: 0 | N89: 0 | P89: 0
B90: October | D90: ='6. Historical Wholesale'!D90 -> 0 | E90: 0 | F90: 0 | H90: ='6. Historical Wholesale'!H90 -> 0 | I90: 0 | J90: 0 | L90: ='6. Historical Wholesale'!L90 -> 0 | M90: 0 | N90: 0 | P90: 0
B91: November | D91: ='6. Historical Wholesale'!D91 -> 0 | E91: 0 | F91: 0 | H91: ='6. Historical Wholesale'!H91 -> 0 | I91: 0 | J91: 0 | L91: ='6. Historical Wholesale'!L91 -> 0 | M91: 0 | N91: 0 | P91: 0
B92: December | D92: ='6. Historical Wholesale'!D92 -> 0 | E92: 0 | F92: 0 | H92: ='6. Historical Wholesale'!H92 -> 0 | I92: 0 | J92: 0 | L92: ='6. Historical Wholesale'!L92 -> 0 | M92: 0 | N92: 0 | P92: 0
B94: Total | D94: =SUM(D81:D92) -> 0 | E94: =IF(D94<>0,F94/D94,0) -> 0 | F94: =SUM(F81:F92) -> 0 | H94: =SUM(H81:H92) -> 0 | I94: =IF(H94<>0,J94/H94,0) -> 0 | J94: =SUM(J81:J92) -> 0 | L94: =SUM(L81:L92) -> 0 | M94: =IF(L94<>0,N94/L94,0) -> 0 | N94: =SUM(N81:N92) -> 0 | P94: =SUM(P81:P92) -> 0
B96: Total | D96: Network | H96: Line Connection | L96: Transformation Connection | P96: Total Line
B98: Month | D98: Units Billed | E98: Rate | F98: Amount | H98: Units Billed | I98: Rate | J98: Amount | L98: Units Billed | M98: Rate | N98: Amount | P98: Amount
B100: January | D100: =D24+D43+D62+D81 -> 116325.04 | E100: =IF(D100<>0,F100/D100,0) -> 3.370210322 | F100: =F24+F43+F62+F81 -> 392039.8506 | H100: =H24+H43+H62+H81 -> 123053.04 | I100: =IF(H100<>0,J100/H100,0) -> 0.8524157131 | J100: =J24+J43+J62+J81 -> 104892.3448 | L100: =L24+L43+L62+L81 -> 123053.04 | M100: =IF(L100<>0,N100/L100,0) -> 2.017971853 | N100: =N24+N43+N62+N81 -> 248317.5712 | P100: =J100+N100 -> 353209.916
B101: February | D101: =D25+D44+D63+D82 -> 119807.33 | E101: 3.375273639 | F101: =F25+F44+F63+F82 -> 404382.5227 | H101: =H25+H44+H63+H82 -> 119874.33 | I101: 0.8490078521 | J101: =J25+J44+J63+J82 -> 101774.2474 | L101: =L25+L44+L63+L82 -> 119874.33 | M101: 2.006725912 | N101: =N25+N44+N63+N82 -> 240554.9242 | P101: 342329.1716
B102: March | D102: 118671.77 | E102: 3.372567025 | F102: 400228.4983 | H102: 128111.77 | I102: 0.8553178812 | J102: 109576.2877 | L102: 128111.77 | M102: 2.027549008 | N102: 259752.8922 | P102: 369329.1798
B103: April | D103: 101268.02 | E103: 3.386468661 | F103: 342940.9761 | H103: 118967.7556 | I103: 0.8680875311 | J103: 103274.4253 | L103: 118967.7626 | M103: 2.069688868 | N103: 246226.2539 | P103: 349500.6792
B104: May | D104: 96173.76 | E104: 3.333055428 | F104: 320552.4728 | H104: 100188.76 | I104: 0.8355544271 | J104: 83713.16196 | L104: 100188.76 | M104: 1.962329609 | N104: 196603.3703 | P104: 280316.5322
B105: June | D105: 98232.14 | E105: 3.342382931 | F105: 328329.428 | H105: 104410.14 | I105: 0.8416089849 | J105: 87872.51194 | L105: 104410.14 | M105: 1.98230965 | N105: 206973.2281 | P105: 294845.74
B106: July | D106: 101583.35 | E106: 3.358328751 | F106: 341150.285 | H106: 108659.35 | I106: 0.8487120975 | J106: 92220.50485 | L106: 108659.35 | M106: 2.005749922 | N106: 217943.4828 | P106: 310163.9876
B107: August | D107: 104615.17 | E107: 3.362316234 | F107: 351749.2844 | H107: 111788.17 | I107: 0.8502150815 | J107: 95043.98807 | L107: 111788.17 | M107: 2.010709769 | N107: 224773.5655 | P107: 319817.5536
B108: September | D108: 107611.17 | E108: 3.3484937 | F108: 360335.3248 | H108: 114949.17 | I108: 0.8446093179 | J108: 97087.14007 | L108: 114949.17 | M108: 1.992210749 | N108: 229002.9721 | P108: 326090.1122
B109: October | D109: 118047.02 | E109: 3.40019967 | F109: 401383.4385 | H109: 128368.02 | I109: 0.8669436392 | J109: 111287.8384 | L109: 128368.02 | M109: 2.065914009 | N109: 265197.2909 | P109: 376485.1293
B110: November | D110: 112438.8505 | E110: 3.299035518 | F110: 370939.7612 | H110: 137146.0209 | I110: 0.8402479808 | J110: 115236.6671 | L110: 157837.065 | M110: 2.025297151 | N110: 319666.9581 | P110: 434903.6252
B111: December | D111: 130291.6295 | E111: 3.389401855 | F111: 441610.6908 | H111: 116282.4391 | I111: 0.8405921933 | J111: 97746.11052 | L111: 95591.39502 | M111: 1.9008048 | N111: 181700.5825 | P111: 279446.693
B113: Total | D113: =SUM(D100:D111) -> 1325065.25 | E113: =IF(D113<>0,F113/D113,0) -> 3.36258349 | F113: =SUM(F100:F111) -> 4455642.533 | H113: =SUM(H100:H111) -> 1411798.966 | I113: =IF(H113<>0,J113/H113,0) -> 0.849784748 | J113: =SUM(J100:J111) -> 1199725.228 | L113: =SUM(L100:L111) -> 1411798.973 | M113: =IF(L113<>0,N113/L113,0) -> 2.00928967 | N113: =SUM(N100:N111) -> 2836713.092 | P113: =SUM(P100:P111) -> 4036438.32
N115: Low Voltage Switchgear Credit (if applicable) | P115: ='5. UTRs and Sub-Transmission'!H75 -> 0
N117: Total including deduction for Low Voltage Switchgear Credit | P117: =P113+P115 -> 4036438.32

Sheet 8. Forecast Wholesale
B13: The purpose of this sheet is to calculate the expected billing when forecasted 2019 Uniform Transmission Rates are applied against historical 2017 transmission units.
B20: IESO | D20: Network | H20: Line Connection | L20: Transformation Connection | P20: Total Line
B22: Month | D22: Units Billed | E22: Rate | F22: Amount | H22: Units Billed | I22: Rate | J22: Amount | L22: Units Billed | M22: Rate | N22: Amount | P22: Amount
B24: January | D24: ='6. Historical Wholesale'!D24 -> 49241 | E24: ='5. UTRs and Sub-Transmission'!J22 -> 3.61 | F24: =D24*E24 -> 177760.01 | H24: ='6. Historical Wholesale'!H24 -> 55969 | I24: ='5. UTRs and Sub-Transmission'!J24 -> 0.95 | J24: =H24*I24 -> 53170.55 | L24: ='6. Historical Wholesale'!L24 -> 55969 | M24: ='5. UTRs and Sub-Transmission'!J26 -> 2.34 | N24: =L24*M24 -> 130967.46 | P24: =J24+N24 -> 184138.01
B25: February | D25: ='6. Historical Wholesale'!D25 -> 52174 | E25: =E24 -> 3.61 | F25: 188348.14 | H25: ='6. Historical Wholesale'!H25 -> 52241 | I25: =I24 -> 0.95 | J25: 49628.95 | L25: ='6. Historical Wholesale'!L25 -> 52241 | M25: =M24 -> 2.34 | N25: 122243.94 | P25: 171872.89
B26: March | D26: ='6. Historical Wholesale'!D26 -> 50907 | E26: 3.61 | F26: 183774.27 | H26: ='6. Historical Wholesale'!H26 -> 60347 | I26: 0.95 | J26: 57329.65 | L26: ='6. Historical Wholesale'!L26 -> 60347 | M26: 2.34 | N26: 141211.98 | P26: 198541.63
B27: April | D27: ='6. Historical Wholesale'!D27 -> 46827 | E27: 3.61 | F27: 169045.47 | H27: ='6. Historical Wholesale'!H27 -> 64526.73563 | I27: 0.95 | J27: 61300.39885 | L27: ='6. Historical Wholesale'!L27 -> 64526.74257 | M27: 2.34 | N27: 150992.5776 | P27: 212292.9765
B28: May | D28: ='6. Historical Wholesale'!D28 -> 32117 | E28: 3.61 | F28: 115942.37 | H28: ='6. Historical Wholesale'!H28 -> 36132 | I28: 0.95 | J28: 34325.4 | L28: ='6. Historical Wholesale'!L28 -> 36132 | M28: 2.34 | N28: 84548.88 | P28: 118874.28
B29: June | D29: ='6. Historical Wholesale'!D29 -> 35008 | E29: 3.61 | F29: 126378.88 | H29: ='6. Historical Wholesale'!H29 -> 41186 | I29: 0.95 | J29: 39126.7 | L29: ='6. Historical Wholesale'!L29 -> 41186 | M29: 2.34 | N29: 96375.24 | P29: 135501.94
B30: July | D30: ='6. Historical Wholesale'!D30 -> 40098 | E30: 3.61 | F30: 144753.78 | H30: ='6. Historical Wholesale'!H30 -> 47174 | I30: 0.95 | J30: 44815.3 | L30: ='6. Historical Wholesale'!L30 -> 47174 | M30: 2.34 | N30: 110387.16 | P30: 155202.46
B31: August | D31: ='6. Historical Wholesale'!D31 -> 42298 | E31: 3.61 | F31: 152695.78 | H31: ='6. Historical Wholesale'!H31 -> 49471 | I31: 0.95 | J31: 46997.45 | L31: ='6. Historical Wholesale'!L31 -> 49471 | M31: 2.34 | N31: 115762.14 | P31: 162759.59
B32: September | D32: ='6. Historical Wholesale'!D32 -> 39932 | E32: 3.61 | F32: 144154.52 | H32: ='6. Historical Wholesale'!H32 -> 47270 | I32: 0.95 | J32: 44906.5 | L32: ='6. Historical Wholesale'!L32 -> 47270 | M32: 2.34 | N32: 110611.8 | P32: 155518.3
B33: October | D33: ='6. Historical Wholesale'!D33 -> 58484 | E33: 3.61 | F33: 211127.24 | H33: ='6. Historical Wholesale'!H33 -> 68805 | I33: 0.95 | J33: 65364.75 | L33: ='6. Historical Wholesale'!L33 -> 68805 | M33: 2.34 | N33: 161003.7 | P33: 226368.45
B34: November | D34: ='6. Historical Wholesale'!D34 -> 28349.17045 | E34: 3.61 | F34: 102340.5053 | H34: ='6. Historical Wholesale'!H34 -> 53056.34091 | I34: 0.95 | J34: 50403.52386 | L34: ='6. Historical Wholesale'!L34 -> 73747.38498 | M34: 2.34 | N34: 172568.8808 | P34: 222972.4047
B35: December | D35: ='6. Historical Wholesale'!D35 -> 61166.82955 | E35: 3.61 | F35: 220812.2547 | H35: ='6. Historical Wholesale'!H35 -> 45208.65909 | I35: 0.95 | J35: 42948.22614 | L35: ='6. Historical Wholesale'!L35 -> 24517.61502 | M35: 2.34 | N35: 57371.21915 | P35: 100319.4453
B37: Total | D37: =SUM(D24:D35) -> 536602 | E37: =IF(D37<>0,F37/D37,0) -> 3.61 | F37: =SUM(F24:F35) -> 1937133.22 | H37: =SUM(H24:H35) -> 621386.7356 | I37: =IF(H37<>0,J37/H37,0) -> 0.95 | J37: =SUM(J24:J35) -> 590317.3989 | L37: =SUM(L24:L35) -> 621386.7426 | M37: =IF(L37<>0,N37/L37,0) -> 2.34 | N37: =SUM(N24:N35) -> 1454044.978 | P37: =SUM(P24:P35) -> 2044362.376
B39: Hydro One | D39: Network | H39: Line Connection | L39: Transformation Connection | P39: Total Line
B41: Month | D41: Units Billed | E41: Rate | F41: Amount | H41: Units Billed | I41: Rate | J41: Amount | L41: Units Billed | M41: Rate | N41: Amount | P41: Amount
B43: January | D43: ='6. Historical Wholesale'!D43 -> 67084.04 | E43: ='5. UTRs and Sub-Transmission'!J36 -> 3.1942 | F43: =D43*E43 -> 214279.8406 | H43: ='6. Historical Wholesale'!H43 -> 67084.04 | I43: ='5. UTRs and Sub-Transmission'!J38 -> 0.771 | J43: =H43*I43 -> 51721.79484 | L43: ='6. Historical Wholesale'!L43 -> 67084.04 | M43: ='5. UTRs and Sub-Transmission'!J40 -> 1.7493 | N43: =L43*M43 -> 117350.1112 | P43: =J43+N43 -> 169071.906
B44: February | D44: ='6. Historical Wholesale'!D44 -> 67633.33 | E44: =E43 -> 3.1942 | F44: 216034.3827 | H44: ='6. Historical Wholesale'!H44 -> 67633.33 | I44: =I43 -> 0.771 | J44: 52145.29743 | L44: ='6. Historical Wholesale'!L44 -> 67633.33 | M44: =M43 -> 1.7493 | N44: 118310.9842 | P44: 170456.2816
B45: March | D45: ='6. Historical Wholesale'!D45 -> 67764.77 | E45: 3.1942 | F45: 216454.2283 | H45: ='6. Historical Wholesale'!H45 -> 67764.77 | I45: 0.771 | J45: 52246.63767 | L45: ='6. Historical Wholesale'!L45 -> 67764.77 | M45: 1.7493 | N45: 118540.9122 | P45: 170787.5498
B46: April | D46: ='6. Historical Wholesale'!D46 -> 54441.02 | E46: 3.1942 | F46: 173895.5061 | H46: ='6. Historical Wholesale'!H46 -> 54441.02 | I46: 0.771 | J46: 41974.02642 | L46: ='6. Historical Wholesale'!L46 -> 54441.02 | M46: 1.7493 | N46: 95233.67629 | P46: 137207.7027
B47: May | D47: ='6. Historical Wholesale'!D47 -> 64056.76 | E47: 3.1942 | F47: 204610.1028 | H47: ='6. Historical Wholesale'!H47 -> 64056.76 | I47: 0.771 | J47: 49387.76196 | L47: ='6. Historical Wholesale'!L47 -> 64056.76 | M47: 1.7493 | N47: 112054.4903 | P47: 161442.2522
B48: June | D48: ='6. Historical Wholesale'!D48 -> 63224.14 | E48: 3.1942 | F48: 201950.548 | H48: ='6. Historical Wholesale'!H48 -> 63224.14 | I48: 0.771 | J48: 48745.81194 | L48: ='6. Historical Wholesale'!L48 -> 63224.14 | M48: 1.7493 | N48: 110597.9881 | P48: 159343.8
B49: July | D49: ='6. Historical Wholesale'!D49 -> 61485.35 | E49: 3.1942 | F49: 196396.505 | H49: ='6. Historical Wholesale'!H49 -> 61485.35 | I49: 0.771 | J49: 47405.20485 | L49: ='6. Historical Wholesale'!L49 -> 61485.35 | M49: 1.7493 | N49: 107556.3228 | P49: 154961.5276
B50: August | D50: ='6. Historical Wholesale'!D50 -> 62317.17 | E50: 3.1942 | F50: 199053.5044 | H50: ='6. Historical Wholesale'!H50 -> 62317.17 | I50: 0.771 | J50: 48046.53807 | L50: ='6. Historical Wholesale'!L50 -> 62317.17 | M50: 1.7493 | N50: 109011.4255 | P50: 157057.9636
B51: September | D51: ='6. Historical Wholesale'!D51 -> 67679.17 | E51: 3.1942 | F51: 216180.8048 | H51: ='6. Historical Wholesale'!H51 -> 67679.17 | I51: 0.771 | J51: 52180.64007 | L51: ='6. Historical Wholesale'!L51 -> 67679.17 | M51: 1.7493 | N51: 118391.1721 | P51: 170571.8122
B52: October | D52: ='6. Historical Wholesale'!D52 -> 59563.02 | E52: 3.1942 | F52: 190256.1985 | H52: ='6. Historical Wholesale'!H52 -> 59563.02 | I52: 0.771 | J52: 45923.08842 | L52: ='6. Historical Wholesale'!L52 -> 59563.02 | M52: 1.7493 | N52: 104193.5909 | P52: 150116.6793
B53: November | D53: ='6. Historical Wholesale'!D53 -> 84089.68 | E53: 3.1942 | F53: 268599.2559 | H53: ='6. Historical Wholesale'!H53 -> 84089.68 | I53: 0.771 | J53: 64833.14328 | L53: ='6. Historical Wholesale'!L53 -> 84089.68 | M53: 1.7493 | N53: 147098.0772 | P53: 211931.2205
B54: December | D54: ='6. Historical Wholesale'!D54 -> 69124.8 | E54: 3.1942 | F54: 220798.4362 | H54: ='6. Historical Wholesale'!H54 -> 71073.78 | I54: 0.771 | J54: 54797.88438 | L54: ='6. Historical Wholesale'!L54 -> 71073.78 | M54: 1.7493 | N54: 124329.3634 | P54: 179127.2477
B56: Total | D56: =SUM(D43:D54) -> 788463.25 | E56: =IF(D56<>0,F56/D56,0) -> 3.1942 | F56: =SUM(F43:F54) -> 2518509.313 | H56: =SUM(H43:H54) -> 790412.23 | I56: =IF(H56<>0,J56/H56,0) -> 0.771 | J56: =SUM(J43:J54) -> 609407.8293 | L56: =SUM(L43:L54) -> 790412.23 | M56: =IF(L56<>0,N56/L56,0) -> 1.7493 | N56: =SUM(N43:N54) -> 1382668.114 | P56: =SUM(P43:P54) -> 1992075.943
B58: ='6. Historical Wholesale'!B58 -> Add Extra Host Here (I) | D58: Network | H58: Line Connection | L58: Transformation Connection | P58: Total Line
B60: Month | D60: Units Billed | E60: Rate | F60: Amount | H60: Units Billed | I60: Rate | J60: Amount | L60: Units Billed | M60: Rate | N60: Amount | P60: Amount
B62: January | D62: ='6. Historical Wholesale'!D62 -> 0 | E62: ='5. UTRs and Sub-Transmission'!J51 -> 0 | F62: =D62*E62 -> 0 | H62: ='6. Historical Wholesale'!H62 -> 0 | I62: ='5. UTRs and Sub-Transmission'!J53 -> 0 | J62: =H62*I62 -> 0 | L62: ='6. Historical Wholesale'!L62 -> 0 | M62: ='5. UTRs and Sub-Transmission'!J55 -> 0 | N62: =L62*M62 -> 0 | P62: =J62+N62 -> 0
B63: February | D63: ='6. Historical Wholesale'!D63 -> 0 | E63: =E62 -> 0 | F63: 0 | H63: ='6. Historical Wholesale'!H63 -> 0 | I63: =I62 -> 0 | J63: 0 | L63: ='6. Historical Wholesale'!L63 -> 0 | M63: =M62 -> 0 | N63: 0 | P63: 0
B64: March | D64: ='6. Historical Wholesale'!D64 -> 0 | E64: 0 | F64: 0 | H64: ='6. Historical Wholesale'!H64 -> 0 | I64: 0 | J64: 0 | L64: ='6. Historical Wholesale'!L64 -> 0 | M64: 0 | N64: 0 | P64: 0
B65: April | D65: ='6. Historical Wholesale'!D65 -> 0 | E65: 0 | F65: 0 | H65: ='6. Historical Wholesale'!H65 -> 0 | I65: 0 | J65: 0 | L65: ='6. Historical Wholesale'!L65 -> 0 | M65: 0 | N65: 0 | P65: 0
B66: May | D66: ='6. Historical Wholesale'!D66 -> 0 | E66: 0 | F66: 0 | H66: ='6. Historical Wholesale'!H66 -> 0 | I66: 0 | J66: 0 | L66: ='6. Historical Wholesale'!L66 -> 0 | M66: 0 | N66: 0 | P66: 0
B67: June | D67: ='6. Historical Wholesale'!D67 -> 0 | E67: 0 | F67: 0 | H67: ='6. Historical Wholesale'!H67 -> 0 | I67: 0 | J67: 0 | L67: ='6. Historical Wholesale'!L67 -> 0 | M67: 0 | N67: 0 | P67: 0
B68: July | D68: ='6. Historical Wholesale'!D68 -> 0 | E68: 0 | F68: 0 | H68: ='6. Historical Wholesale'!H68 -> 0 | I68: 0 | J68: 0 | L68: ='6. Historical Wholesale'!L68 -> 0 | M68: 0 | N68: 0 | P68: 0
B69: August | D69: ='6. Historical Wholesale'!D69 -> 0 | E69: 0 | F69: 0 | H69: ='6. Historical Wholesale'!H69 -> 0 | I69: 0 | J69: 0 | L69: ='6. Historical Wholesale'!L69 -> 0 | M69: 0 | N69: 0 | P69: 0
B70: September | D70: ='6. Historical Wholesale'!D70 -> 0 | E70: 0 | F70: 0 | H70: ='6. Historical Wholesale'!H70 -> 0 | I70: 0 | J70: 0 | L70: ='6. Historical Wholesale'!L70 -> 0 | M70: 0 | N70: 0 | P70: 0
B71: October | D71: ='6. Historical Wholesale'!D71 -> 0 | E71: 0 | F71: 0 | H71: ='6. Historical Wholesale'!H71 -> 0 | I71: 0 | J71: 0 | L71: ='6. Historical Wholesale'!L71 -> 0 | M71: 0 | N71: 0 | P71: 0
B72: November | D72: ='6. Historical Wholesale'!D72 -> 0 | E72: 0 | F72: 0 | H72: ='6. Historical Wholesale'!H72 -> 0 | I72: 0 | J72: 0 | L72: ='6. Historical Wholesale'!L72 -> 0 | M72: 0 | N72: 0 | P72: 0
B73: December | D73: ='6. Historical Wholesale'!D73 -> 0 | E73: 0 | F73: 0 | H73: ='6. Historical Wholesale'!H73 -> 0 | I73: 0 | J73: 0 | L73: ='6. Historical Wholesale'!L73 -> 0 | M73: 0 | N73: 0 | P73: 0
B75: Total | D75: =SUM(D62:D73) -> 0 | E75: =IF(D75<>0,F75/D75,0) -> 0 | F75: =SUM(F62:F73) -> 0 | H75: =SUM(H62:H73) -> 0 | I75: =IF(H75<>0,J75/H75,0) -> 0 | J75: =SUM(J62:J73) -> 0 | L75: =SUM(L62:L73) -> 0 | M75: =IF(L75<>0,N75/L75,0) -> 0 | N75: =SUM(N62:N73) -> 0 | P75: =SUM(P62:P73) -> 0
B77: ='6. Historical Wholesale'!B77 -> Add Extra Host Here (II) | D77: Network | H77: Line Connection | L77: Transformation Connection | P77: Total Line
B79: Month | D79: Units Billed | E79: Rate | F79: Amount | H79: Units Billed | I79: Rate | J79: Amount | L79: Units Billed | M79: Rate | N79: Amount | P79: Amount
B81: January | D81: ='6. Historical Wholesale'!D81 -> 0 | E81: ='5. UTRs and Sub-Transmission'!J66 -> 0 | F81: =D81*E81 -> 0 | H81: ='6. Historical Wholesale'!H81 -> 0 | I81: ='5. UTRs and Sub-Transmission'!J68 -> 0 | J81: =H81*I81 -> 0 | L81: ='6. Historical Wholesale'!L81 -> 0 | M81: ='5. UTRs and Sub-Transmission'!J70 -> 0 | N81: =L81*M81 -> 0 | P81: =J81+N81 -> 0
B82: February | D82: ='6. Historical Wholesale'!D82 -> 0 | E82: =E81 -> 0 | F82: 0 | H82: ='6. Historical Wholesale'!H82 -> 0 | I82: =I81 -> 0 | J82: 0 | L82: ='6. Historical Wholesale'!L82 -> 0 | M82: =M81 -> 0 | N82: 0 | P82: 0
B83: March | D83: ='6. Historical Wholesale'!D83 -> 0 | E83: 0 | F83: 0 | H83: ='6. Historical Wholesale'!H83 -> 0 | I83: 0 | J83: 0 | L83: ='6. Historical Wholesale'!L83 -> 0 | M83: 0 | N83: 0 | P83: 0
B84: April | D84: ='6. Historical Wholesale'!D84 -> 0 | E84: 0 | F84: 0 | H84: ='6. Historical Wholesale'!H84 -> 0 | I84: 0 | J84: 0 | L84: ='6. Historical Wholesale'!L84 -> 0 | M84: 0 | N84: 0 | P84: 0
B85: May | D85: ='6. Historical Wholesale'!D85 -> 0 | E85: 0 | F85: 0 | H85: ='6. Historical Wholesale'!H85 -> 0 | I85: 0 | J85: 0 | L85: ='6. Historical Wholesale'!L85 -> 0 | M85: 0 | N85: 0 | P85: 0
B86: June | D86: ='6. Historical Wholesale'!D86 -> 0 | E86: 0 | F86: 0 | H86: ='6. Historical Wholesale'!H86 -> 0 | I86: 0 | J86: 0 | L86: ='6. Historical Wholesale'!L86 -> 0 | M86: 0 | N86: 0 | P86: 0
B87: July | D87: ='6. Historical Wholesale'!D87 -> 0 | E87: 0 | F87: 0 | H87: ='6. Historical Wholesale'!H87 -> 0 | I87: 0 | J87: 0 | L87: ='6. Historical Wholesale'!L87 -> 0 | M87: 0 | N87: 0 | P87: 0
B88: August | D88: ='6. Historical Wholesale'!D88 -> 0 | E88: 0 | F88: 0 | H88: ='6. Historical Wholesale'!H88 -> 0 | I88: 0 | J88: 0 | L88: ='6. Historical Wholesale'!L88 -> 0 | M88: 0 | N88: 0 | P88: 0
B89: September | D89: ='6. Historical Wholesale'!D89 -> 0 | E89: 0 | F89: 0 | H89: ='6. Historical Wholesale'!H89 -> 0 | I89: 0 | J89: 0 | L89: ='6. Historical Wholesale'!L89 -> 0 | M89: 0 | N89: 0 | P89: 0
B90: October | D90: ='6. Historical Wholesale'!D90 -> 0 | E90: 0 | F90: 0 | H90: ='6. Historical Wholesale'!H90 -> 0 | I90: 0 | J90: 0 | L90: ='6. Historical Wholesale'!L90 -> 0 | M90: 0 | N90: 0 | P90: 0
B91: November | D91: ='6. Historical Wholesale'!D91 -> 0 | E91: 0 | F91: 0 | H91: ='6. Historical Wholesale'!H91 -> 0 | I91: 0 | J91: 0 | L91: ='6. Historical Wholesale'!L91 -> 0 | M91: 0 | N91: 0 | P91: 0
B92: December | D92: ='6. Historical Wholesale'!D92 -> 0 | E92: 0 | F92: 0 | H92: ='6. Historical Wholesale'!H92 -> 0 | I92: 0 | J92: 0 | L92: ='6. Historical Wholesale'!L92 -> 0 | M92: 0 | N92: 0 | P92: 0
B94: Total | D94: =SUM(D81:D92) -> 0 | E94: =IF(D94<>0,F94/D94,0) -> 0 | F94: =SUM(F81:F92) -> 0 | H94: =SUM(H81:H92) -> 0 | I94: =IF(H94<>0,J94/H94,0) -> 0 | J94: =SUM(J81:J92) -> 0 | L94: =SUM(L81:L92) -> 0 | M94: =IF(L94<>0,N94/L94,0) -> 0 | N94: =SUM(N81:N92) -> 0 | P94: =SUM(P81:P92) -> 0
B96: Total | D96: Network | H96: Line Connection | L96: Transformation Connection | P96: Total Line
B98: Month | D98: Units Billed | E98: Rate | F98: Amount | H98: Units Billed | I98: Rate | J98: Amount | L98: Units Billed | M98: Rate | N98: Amount | P98: Amount
B100: January | D100: =D24+D43+D62+D81 -> 116325.04 | E100: =IF(D100<>0,F100/D100,0) -> 3.370210322 | F100: =F24+F43+F62+F81 -> 392039.8506 | H100: =H24+H43+H62+H81 -> 123053.04 | I100: =IF(H100<>0,J100/H100,0) -> 0.8524157131 | J100: =J24+J43+J62+J81 -> 104892.3448 | L100: =L24+L43+L62+L81 -> 123053.04 | M100: =IF(L100<>0,N100/L100,0) -> 2.017971853 | N100: =N24+N43+N62+N81 -> 248317.5712 | P100: =J100+N100 -> 353209.916
B101: February | D101: =D25+D44+D63+D82 -> 119807.33 | E101: 3.375273639 | F101: 404382.5227 | H101: =H25+H44+H63+H82 -> 119874.33 | I101: 0.8490078521 | J101: =J25+J44+J63+J82 -> 101774.2474 | L101: =L25+L44+L63+L82 -> 119874.33 | M101: 2.006725912 | N101: =N25+N44+N63+N82 -> 240554.9242 | P101: 342329.1716
B102: March | D102: 118671.77 | E102: 3.372567025 | F102: 400228.4983 | H102: =H26+H45+H64+H83 -> 128111.77 | I102: 0.8553178812 | J102: =J26+J45+J64+J83 -> 109576.2877 | L102: =L26+L45+L64+L83 -> 128111.77 | M102: 2.027549008 | N102: =N26+N45+N64+N83 -> 259752.8922 | P102: 369329.1798
B103: April | D103: 101268.02 | E103: 3.386468661 | F103: 342940.9761 | H103: =H27+H46+H65+H84 -> 118967.7556 | I103: 0.8680875311 | J103: =J27+J46+J65+J84 -> 103274.4253 | L103: =L27+L46+L65+L84 -> 118967.7626 | M103: 2.069688868 | N103: =N27+N46+N65+N84 -> 246226.2539 | P103: 349500.6792
B104: May | D104: 96173.76 | E104: 3.333055428 | F104: 320552.4728 | H104: =H28+H47+H66+H85 -> 100188.76 | I104: 0.8355544271 | J104: =J28+J47+J66+J85 -> 83713.16196 | L104: =L28+L47+L66+L85 -> 100188.76 | M104: 1.962329609 | N104: =N28+N47+N66+N85 -> 196603.3703 | P104: 280316.5322
B105: June | D105: 98232.14 | E105: 3.342382931 | F105: 328329.428 | H105: =H29+H48+H67+H86 -> 104410.14 | I105: 0.8416089849 | J105: =J29+J48+J67+J86 -> 87872.51194 | L105: =L29+L48+L67+L86 -> 104410.14 | M105: 1.98230965 | N105: =N29+N48+N67+N86 -> 206973.2281 | P105: 294845.74
B106: July | D106: 101583.35 | E106: 3.358328751 | F106: 341150.285 | H106: =H30+H49+H68+H87 -> 108659.35 | I106: 0.8487120975 | J106: =J30+J49+J68+J87 -> 92220.50485 | L106: =L30+L49+L68+L87 -> 108659.35 | M106: 2.005749922 | N106: =N30+N49+N68+N87 -> 217943.4828 | P106: 310163.9876
B107: August | D107: 104615.17 | E107: 3.362316234 | F107: 351749.2844 | H107: =H31+H50+H69+H88 -> 111788.17 | I107: 0.8502150815 | J107: =J31+J50+J69+J88 -> 95043.98807 | L107: =L31+L50+L69+L88 -> 111788.17 | M107: 2.010709769 | N107: =N31+N50+N69+N88 -> 224773.5655 | P107: 319817.5536
B108: September | D108: 107611.17 | E108: 3.3484937 | F108: 360335.3248 | H108: =H32+H51+H70+H89 -> 114949.17 | I108: 0.8446093179 | J108: =J32+J51+J70+J89 -> 97087.14007 | L108: =L32+L51+L70+L89 -> 114949.17 | M108: 1.992210749 | N108: =N32+N51+N70+N89 -> 229002.9721 | P108: 326090.1122
B109: October | D109: 118047.02 | E109: 3.40019967 | F109: 401383.4385 | H109: =H33+H52+H71+H90 -> 128368.02 | I109: 0.8669436392 | J109: =J33+J52+J71+J90 -> 111287.8384 | L109: =L33+L52+L71+L90 -> 128368.02 | M109: 2.065914009 | N109: =N33+N52+N71+N90 -> 265197.2909 | P109: 376485.1293
B110: November | D110: 112438.8505 | E110: 3.299035518 | F110: 370939.7612 | H110: =H34+H53+H72+H91 -> 137146.0209 | I110: 0.8402479808 | J110: =J34+J53+J72+J91 -> 115236.6671 | L110: =L34+L53+L72+L91 -> 157837.065 | M110: 2.025297151 | N110: =N34+N53+N72+N91 -> 319666.9581 | P110: 434903.6252
B111: December | D111: 130291.6295 | E111: 3.389401855 | F111: 441610.6908 | H111: =H35+H54+H73+H92 -> 116282.4391 | I111: 0.8405921933 | J111: =J35+J54+J73+J92 -> 97746.11052 | L111: =L35+L54+L73+L92 -> 95591.39502 | M111: 1.9008048 | N111: =N35+N54+N73+N92 -> 181700.5825 | P111: 279446.693
B113: Total | D113: =SUM(D100:D111) -> 1325065.25 | E113: =IF(D113<>0,F113/D113,0) -> 3.36258349 | F113: =SUM(F100:F111) -> 4455642.533 | H113: =SUM(H100:H111) -> 1411798.966 | I113: =IF(H113<>0,J113/H113,0) -> 0.849784748 | J113: =SUM(J100:J111) -> 1199725.228 | L113: =SUM(L100:L111) -> 1411798.973 | M113: =IF(L113<>0,N113/L113,0) -> 2.00928967 | N113: =SUM(N100:N111) -> 2836713.092 | P113: =SUM(P100:P111) -> 4036438.32
N115: Low Voltage Switchgear Credit (if applicable) | P115: ='5. UTRs and Sub-Transmission'!J75 -> 0
N117: Total including deduction for Low Voltage Switchgear Credit | P117: =P113+P115 -> 4036438.32

Sheet 9. RTSR Rates to Forecast
A13: The purpose of this sheet is to re-align the current RTS Network Rates to recover current wholesale network costs.
A15: Rate Class | B15: Rate Description | C15: Unit | D15: Current RTSR-Network | E15: Loss Adjusted Billed kWh | F15: Billed kW | G15: Billed Amount | H15: Billed Amount % | I15: Current Wholesale Billing | J15: Adjusted RTSR Network
A17: Residential | B17: RTSR - Network | C17: kWh | D17: 0.0062 | E17: 182975598.2 | F17: 0 | G17: =ROUND(D17*E17, 2) -> 1134448.71 | H17: =G17/4080748.4 -> 0.2780001605 | I17: =H17*total_current_wholesale_network -> 1238669.339 | J17: =IF(ISERROR(I17/E17), 0, I17/E17) -> 0.006769587592
A18: General Service Less Than 50 kW | B18: RTSR - Network | C18: kWh | D18: 0.0055 | E18: 90468707.04 | F18: 0 | G18: =ROUND(D18*E18, 2) -> 497577.89 | H18: 0.1219329989 | I18: 543289.8559 | J18: =IF(ISERROR(I18/E18), 0, I18/E18) -> 0.006005279325
A19: General Service 50 to 4,999 kW | B19: RTSR - Network | C19: kW | D19: 2.4449 | F19: 649833.6 | G19: =ROUND(D19*F19, 2) -> 1588778.17 | H19: 0.389334998 | I19: 1734737.577 | J19: =IF(ISERROR(I19/F19), 0, I19/F19) -> 2.669510436
A20: Large Use | B20: RTSR - Network | C20: kW | D20: 2.9458 | F20: 285841.7 | G20: =ROUND(D20*F20, 2) -> 842032.48 | H20: 0.2063426601 | I20: 919389.1327 | J20: =IF(ISERROR(I20/F20), 0, I20/F20) -> 3.216427599
A21: Unmetered Scattered Load | B21: RTSR - Network | C21: kWh | D21: 0.0062 | E21: 1320003.186 | F21: 0 | G21: =ROUND(D21*E21, 2) -> 8184.02 | H21: 0.00200551938 | I21: 8935.877449 | J21: =IF(ISERROR(I21/E21), 0, I21/E21) -> 0.006769587789
A22: Street Lighting | B22: RTSR - Network | C22: kW | D22: 1.766 | F22: 5508 | G22: =ROUND(D22*F22, 2) -> 9727.13 | H22: 0.002383663252 | I22: 10620.75137 | J22: =IF(ISERROR(I22/F22), 0, I22/F22) -> 1.928240989
A23: Standby Power | B23: RTSR - Network | E23: 0 | G23: =ROUND(D23*F23, 2) -> 0 | H23: 0 | I23: 0 | J23: =IF(ISERROR(I23/F23), 0, I23/F23) -> 0
A25: The purpose of this table is to re-align the current RTS Connection Rates to recover current wholesale connection costs.
A26: Rate Class | B26: Rate Description | C26: Unit | D26: Current RTSR-Connection | E26: Loss Adjusted Billed kWh | F26: Billed kW | G26: Billed Amount | H26: Billed Amount % | I26: Current Wholesale Billing | J26: Adjusted RTSR-Connection
A28: Residential | B28: RTSR - Connection | C28: kWh | D28: 0.0054 | E28: 182975598.2 | F28: 0 | G28: =ROUND(D28*E28, 2) -> 988068.23 | H28: =G28/3564103.93 -> 0.2772276705 | I28: =H28*Total_Current_Wholesale_Lineplus -> 1119012.393 | J28: =IF(ISERROR(I28/E28), 0, I28/E28) -> 0.006115637296
A29: General Service Less Than 50 kW | B29: RTSR - Connection | C29: kWh | D29: 0.0049 | E29: 90468707.04 | F29: 0 | G29: =ROUND(D29*E29, 2) -> 443296.66 | H29: 0.1243781519 | I29: 502044.7385 | J29: =IF(ISERROR(I29/E29), 0, I29/E29) -> 0.005549374529
A30: General Service 50 to 4,999 kW | B30: RTSR - Connection | C30: kW | D30: 2.1294 | F30: 649833.6 | G30: =ROUND(D30*F30, 2) -> 1383755.67 | H30: 0.3882478449 | I30: 1567138.479 | J30: =IF(ISERROR(I30/F30), 0, I30/F30) -> 2.411599645
A31: Large Use | B31: RTSR - Connection | C31: kW | D31: 2.5657 | F31: 285841.7 | G31: =ROUND(D31*F31, 2) -> 733384.05 | H31: 0.2057695467 | I31: 830576.0833 | J31: =IF(ISERROR(I31/F31), 0, I31/F31) -> 2.905720485
A32: Unmetered Scattered Load | B32: RTSR - Connection | C32: kWh | D32: 0.0054 | E32: 1320003.186 | F32: 0 | G32: =ROUND(D32*E32, 2) -> 7128.02 | H32: 0.001999947291 | I32: 8072.663883 | J32: =IF(ISERROR(I32/E32), 0, I32/E32) -> 0.006115639697
A33: Street Lighting | B33: RTSR - Connection | C33: kW | D33: 1.538 | F33: 5508 | G33: =ROUND(D33*F33, 2) -> 8471.3 | H33: 0.002376838657 | I33: 9593.962637 | J33: =IF(ISERROR(I33/F33), 0, I33/F33) -> 1.741823282
A34: Standby Power | B34: RTSR - Connection | E34: 0 | G34: =ROUND(D34*F34, 2) -> 0 | H34: 0 | I34: 0 | J34: =IF(ISERROR(I34/F34), 0, I34/F34) -> 0
A36: The purpose of this table is to update the re-aligned RTS Network Rates to recover future wholesale network costs.
A37: Rate Class | B37: Rate Description | C37: Unit | D37: Adjusted RTSR-Network | E37: Loss Adjusted Billed kWh | F37: Billed kW | G37: Billed Amount | H37: Billed Amount % | I37: Current Wholesale Billing | J37: Proposed RTSR-Network
A39: Residential | B39: RTSR - Network | C39: kWh | D39: 0.006769587592 | E39: 182975598.2 | F39: 0 | G39: =IF(ISERROR(D39*E39), 0, ROUND(D39*E39, 2)) -> 1238669.34 | H39: =G39/4455642.54 -> 0.2780001602 | I39: =H39*forecast_wholesale_network -> 1238669.338 | J39: =IF(ISERROR(I39/E39), 0, I39/E39) -> 0.006769587586
A40: General Service Less Than 50 kW | B40: RTSR - Network | C40: kWh | D40: 0.006005279325 | E40: 90468707.04 | F40: 0 | G40: =IF(ISERROR(D40*E40), 0, ROUND(D40*E40, 2)) -> 543289.86 | H40: 0.1219329996 | I40: 543289.8592 | J40: =IF(ISERROR(I40/E40), 0, I40/E40) -> 0.006005279361
A41: General Service 50 to 4,999 kW | B41: RTSR - Network | C41: kW | D41: 2.669510436 | F41: 649833.6 | G41: =ROUND(D41*F41, 2) -> 1734737.58 | H41: 0.3893349981 | I41: 1734737.577 | J41: =IF(ISERROR(I41/F41), 0, I41/F41) -> 2.669510437
A42: Large Use | B42: RTSR - Network | C42: kW | D42: 3.216427599 | F42: 285841.7 | G42: =ROUND(D42*F42, 2) -> 919389.13 | H42: 0.2063426592 | I42: 919389.1286 | J42: =IF(ISERROR(I42/F42), 0, I42/F42) -> 3.216427584
A43: Unmetered Scattered Load | B43: RTSR - Network | C43: kWh | D43: 0.006769587789 | E43: 1320003.186 | F43: 0 | G43: =IF(ISERROR(D43*E43), 0, ROUND(D43*E43, 2)) -> 8935.88 | H43: 0.002005519949 | I43: 8935.879986 | J43: =IF(ISERROR(I43/E43), 0, I43/E43) -> 0.006769589711
A44: Street Lighting | B44: RTSR - Network | C44: kW | D44: 1.928240989 | F44: 5508 | G44: =ROUND(D44*F44, 2) -> 10620.75 | H44: 0.002383662941 | I44: 10620.74998 | J44: =IF(ISERROR(I44/F44), 0, I44/F44) -> 1.928240738
A45: Standby Power | B45: RTSR - Network | D45: 0 | E45: 0 | G45: =ROUND(D45*F45, 2) -> 0 | H45: 0 | I45: 0 | J45: =IF(ISERROR(I45/F45), 0, I45/F45) -> 0
A47: The purpose of this table is to update the re-aligned RTS Connection Rates to recover future wholesale connection costs.
A48: Rate Class | B48: Rate Description | C48: Unit | D48: Adjusted RTSR-Connection | E48: Loss Adjusted Billed kWh | F48: Billed kW | G48: Billed Amount | H48: Billed Amount % | I48: Current Wholesale Billing | J48: Proposed RTSR-Connection
A50: Residential | B50: RTSR - Connection | C50: kWh | D50: 0.006115637296 | E50: 182975598.2 | F50: 0 | G50: =ROUND(D50*E50, 2) -> 1119012.39 | H50: =G50/4036438.31 -> 0.2772276705 | I50: =H50*forecast_wholesale_lineplus -> 1119012.393 | J50: =IF(ISERROR(I50/E50), 0, I50/E50) -> 0.006115637297
A51: General Service Less Than 50 kW | B51: RTSR - Connection | C51: kWh | D51: 0.005549374529 | E51: 90468707.04 | F51: 0 | G51: =ROUND(D51*E51, 2) -> 502044.74 | H51: 0.1243781526 | I51: 502044.7412 | J51: =IF(ISERROR(I51/E51), 0, I51/E51) -> 0.005549374559
A52: General Service 50 to 4,999 kW | B52: RTSR - Connection | C52: kW | D52: 2.411599645 | F52: 649833.6 | G52: =ROUND(D52*F52, 2) -> 1567138.48 | H52: 0.3882478462 | I52: 1567138.484 | J52: =IF(ISERROR(I52/F52), 0, I52/F52) -> 2.411599652
A53: Large Use | B53: RTSR - Connection | C53: kW | D53: 2.905720485 | F53: 285841.7 | G53: =ROUND(D53*F53, 2) -> 830576.08 | H53: 0.2057695464 | I53: 830576.082 | J53: =IF(ISERROR(I53/F53), 0, I53/F53) -> 2.905720481
A54: Unmetered Scattered Load | B54: RTSR - Connection | C54: kWh | D54: 0.006115639697 | E54: 1320003.186 | F54: 0 | G54: =ROUND(D54*E54, 2) -> 8072.66 | H54: 0.001999946334 | I54: 8072.660019 | J54: =IF(ISERROR(I54/E54), 0, I54/E54) -> 0.006115636769
A55: Street Lighting | B55: RTSR - Connection | C55: kW | D55: 1.741823282 | F55: 5508 | G55: =ROUND(D55*F55, 2) -> 9593.96 | H55: 0.00237683801 | I55: 9593.960023 | J55: =IF(ISERROR(I55/F55), 0, I55/F55) -> 1.741822807
A56: Standby Power | B56: RTSR - Connection | D56: 0 | E56: 0 | G56: =ROUND(D56*F56, 2) -> 0 | H56: 0 | I56: 0 | J56: =IF(ISERROR(I56/F56), 0, I56/F56) -> 0

Sheet hidden1 (hidden)
A1: =IF('3. Rate Classes'!L17=1, '3. Rate Classes'!C17, "") -> Residential | B1: 1
A2: =IF('3. Rate Classes'!L18=1, '3. Rate Classes'!C18, "") -> General Service Less Than 50 kW | B2: 2
A3: =IF('3. Rate Classes'!L19=1, '3. Rate Classes'!C19, "") -> General Service 50 to 4,999 kW | B3: 3
A4: =IF('3. Rate Classes'!L20=1, '3. Rate Classes'!C20, "") -> Large Use | B4: 4
A5: =IF('3. Rate Classes'!L21=1, '3. Rate Classes'!C21, "") -> Unmetered Scattered Load | B5: 5
A6: =IF('3. Rate Classes'!L22=1, '3. Rate Classes'!C22, "") -> Street Lighting | B6: 6
A7: =IF('3. Rate Classes'!L23=1, '3. Rate Classes'!C23, "") -> Standby Power | B7: 7
A8: =IF('3. Rate Classes'!L24=1, '3. Rate Classes'!C24, "") ->  | B8: 8
A9: =IF('3. Rate Classes'!L25=1, '3. Rate Classes'!C25, "") ->  | B9: 9
A10: =IF('3. Rate Classes'!L26=1, '3. Rate Classes'!C26, "") ->  | B10: 10
A11: =IF('3. Rate Classes'!L27=1, '3. Rate Classes'!C27, "") ->  | B11: 11
A12: =IF('3. Rate Classes'!L28=1, '3. Rate Classes'!C28, "") ->  | B12: 12
A13: =IF('3. Rate Classes'!L29=1, '3. Rate Classes'!C29, "") ->  | B13: 13
A14: =IF('3. Rate Classes'!L30=1, '3. Rate Classes'!C30, "") ->  | B14: 14
A15: =IF('3. Rate Classes'!L31=1, '3. Rate Classes'!C31, "") ->  | B15: 15
A16: =IF('3. Rate Classes'!L32=1, '3. Rate Classes'!C32, "") ->  | B16: 16
A17: =IF('3. Rate Classes'!L33=1, '3. Rate Classes'!C33, "") ->  | B17: 17
A18: =IF('3. Rate Classes'!L34=1, '3. Rate Classes'!C34, "") ->  | B18: 18
A19: =IF('3. Rate Classes'!L35=1, '3. Rate Classes'!C35, "") ->  | B19: 19
A20: =IF('3. Rate Classes'!L36=1, '3. Rate Classes'!C36, "") ->  | B20: 20
A21: =IF('3. Rate Classes'!L37=1, '3. Rate Classes'!C37, "") ->  | B21: 21
A22: =IF('3. Rate Classes'!L38=1, '3. Rate Classes'!C38, "") ->  | B22: 22
